{"text_format":"1","workbook":"xlsx","n_sheets":4,"sheets":["Доходы","Расходы","ExportParams","Источники"],"not_rendered":{"charts":0,"images":1,"macros":1,"external_links":0,"defined_names":32,"comments":0,"pivot_tables":0},"unopened":[],"bounds":{"document_bytes":16777216,"sheet_cells":100000,"rows_first":2000,"rows_last":500,"rows_between":2000,"halvings":0,"cell_chars":16384,"cell_head_chars":4096},"cells_cut":0,"cells_raw":0,"read":"whole","date_system":"1900"}

{"sheet":"Доходы","index":0,"n_rows":127,"n_cols":8,"rows_kept":127,"cut":false,"hidden":false,"merged":[[10,5,16,5],[0,0,0,3],[1,0,1,3],[3,0,3,3],[5,1,5,3],[6,1,6,3],[9,0,9,3],[10,0,16,0],[10,1,16,1],[10,2,16,2],[10,3,16,3],[10,4,16,4]]}
[null,null,null,null,null,null,null,"RESPPERSONS&="]
["ОТЧЕТ ОБ ИСПОЛНЕНИИ БЮДЖЕТА",null,null,null,null,"КОДЫ"]
[null,null,null,null,"  Форма по ОКУД","0503117",null,"C:\\117M1.txt"]
["на 01 марта 2015 года",null,null,null,"                   Дата","01.03.2015",null,"01.03.2015"]
[null,null,null,null,"             по ОКПО","04032907",null,"117"]
["Наименование финансового органа:","Администрация МО \"Город Пикалево\"",null,null,"    Глава по БК","001",null,"3"]
["Наименование публично-правового образования:","Бюджет МО \"Город Пикалево\" Бокситогорского муниципального района Ленинградской области",null,null,"по ОКТМО","41603102"]
["Периодичность: месячная"]
["Единица измерения: руб.",null,null,null,"             по ОКЕИ","383",null,"1"]
["                                 1. Доходы бюджета"]
[" Наименование показателя","Код строки","Код дохода по бюджетной классификации","Утвержденные бюджетные назначения","Исполнено","Неисполненные назначения"]
[]
[]
[]
[]
[]
[]
[1,2,3,"4","5","6"]
["Доходы бюджета - всего","010","X",212763316.34999999,-35613621.740000002,{"$f":"IF(OR(D19=\"-\",E19=D19),\"-\",D19-IF(E19=\"-\",0,E19))","v":248376938.09}]
["в том числе:"]
["НАЛОГОВЫЕ И НЕНАЛОГОВЫЕ ДОХОДЫ","010","000 10000000000000 000",108464420.2,13522961.42,{"$f":"IF(OR(D21=\"-\",E21=D21),\"-\",D21-IF(E21=\"-\",0,E21))","v":94941458.780000001}]
["НАЛОГИ НА ПРИБЫЛЬ, ДОХОДЫ","010","000 10100000000000 000",27987200,3982645.02,24004554.98]
["Налог на доходы физических лиц","010","000 10102000010000 110",27987200,3982645.02,24004554.98]
["Налог на доходы физических лиц с доходов, источником которых является налоговый агент, за исключением доходов, в отношении которых исчисление и уплата налога осуществляются в соответствии со статьями 227, 227.1 и 228 Налогового кодекса Российской Федерации","010","000 10102010010000 110",27976501.719999999,3971946.74,24004554.979999997]
["Налог на доходы физических лиц с доходов, источником которых является налоговый агент, за исключением доходов, в отношении которых исчисление и уплата налога осуществляются в соответствии со статьями 227, 227.1 и 228 Налогового кодекса Российской Федерации (сумма платежа (перерасчеты, недоимка и задолженность по соответствующему платежу, в том числе по отмененному))","010","000 10102010011000 110",27976501.719999999,3964630.54,24011871.18]
["Налог на доходы физических лиц с доходов, источником которых является налоговый агент, за исключением доходов, в отношении которых исчисление и уплата налога осуществляются в соответствии со статьями 227, 227.1 и 228 Налогового кодекса Российской Федерации (пени по соответствующему платежу)","010","000 10102010012100 110","-",2272.9,"-"]
["Налог на доходы физических лиц с доходов, источником которых является налоговый агент, за исключением доходов, в отношении которых исчисление и уплата налога осуществляются в соответствии со статьями 227, 227.1 и 228 Налогового кодекса Российской Федерации (суммы денежных взысканий (штрафов) по соответствующему платежу согласно законодательству Российской Федерации)","010","000 10102010013000 110","-",5043.3,"-"]
["Налог на доходы физических лиц с доходов, полученных от осуществления деятельности физическими лицами, зарегистрированными в качестве индивидуальных предпринимателей, нотариусов, занимающихся частной практикой, адвокатов, учредивших адвокатские кабинеты и других лиц, занимающихся частной практикой в соответствии со статьей 227 Налогового кодекса Российской Федерации","010","000 10102020010000 110",1910.54,1910.54,"-"]
["Налог на доходы физических лиц с доходов, полученных от осуществления деятельности физическими лицами, зарегистрированными в качестве индивидуальных предпринимателей, нотариусов, занимающихся частной практикой, адвокатов, учредивших адвокатские кабинеты и других лиц, занимающихся частной практикой в соответствии со статьей 227 Налогового кодекса Российской Федерации (сумма платежа (перерасчеты, недоимка и задолженность по соответствующему платежу, в том числе по отмененному))","010","000 10102020011000 110",1910.54,1790,120.53999999999996]
["Налог на доходы физических лиц с доходов, полученных от осуществления деятельности физическими лицами, зарегистрированными в качестве индивидуальных предпринимателей, нотариусов, занимающихся частной практикой, адвокатов, учредивших адвокатские кабинеты и других лиц, занимающихся частной практикой в соответствии со статьей 227 Налогового кодекса Российской Федерации (суммы денежных взысканий (штрафов) по соответствующему платежу согласно законодательству Российской Федерации)","010","000 10102020013000 110","-",120.54,"-"]
["Налог на доходы физических лиц с доходов, полученных физическими лицами в соответствии со статьей 228 Налогового Кодекса Российской Федерации","010","000 10102030010000 110",8787.74,8787.74,"-"]
["Налог на доходы физических лиц с доходов, полученных физическими лицами в соответствии со статьей 228 Налогового Кодекса Российской Федерации (сумма платежа (перерасчеты, недоимка и задолженность по соответствующему платежу, в том числе по отмененному))","010","000 10102030011000 110",8787.74,5365.84,3421.8999999999996]
["Налог на доходы физических лиц с доходов, полученных физическими лицами в соответствии со статьей 228 Налогового кодекса Российской Федерации (пени по соответствующему платежу)","010","000 10102030012100 110","-",15.36,"-"]
["Налог на доходы физических лиц с доходов, полученных физическими лицами в соответствии со статьей 228 Налогового Кодекса Российской Федерации (суммы денежных взысканий (штрафов) по соответствующему платежу согласно законодательству Российской Федерации)","010","000 10102030013000 110","-",2296.9,"-"]
["Налог на доходы физических лиц с доходов, полученных физическими лицами в соответствии со статьей 228 Налогового Кодекса Российской Федерации (прочие поступления)","010","000 10102030014000 110","-",1109.6400000000001,"-"]
["НАЛОГИ НА ТОВАРЫ (РАБОТЫ, УСЛУГИ), РЕАЛИЗУЕМЫЕ НА ТЕРРИТОРИИ РОССИЙСКОЙ ФЕДЕРАЦИИ","010","000 10300000000000 000",1854100,183457.81,1670642.19]
["Акцизы по подакцизным товарам (продукции), производимым на территории Российской Федерации","010","000 10302000010000 110",1854100,183457.81,1670642.19]
["Доходы от уплаты акцизов на дизельное топливо, зачисляемые в консолидированные бюджеты субъектов Российской Федерации","010","000 10302230010000 110",705000,69131.19,635868.81000000006]
["Доходы от уплаты акцизов на моторные масла для дизельных и (или) карбюраторных (инжекторных) двигателей, зачисляемые в консолидированные бюджеты субъектов Российской Федерации","010","000 10302240010000 110",20000,1653.99,18346.009999999998]
["Доходы от уплаты акцизов на автомобильный бензин, производимый на территории Российской Федерации, зачисляемые в консолидированные бюджеты субъектов Российской Федерации","010","000 10302250010000 110",1110000,120319.96,989680.04]
["Доходы от уплаты акцизов на прямогонный бензин, производимый на территории Российской Федерации, зачисляемые в консолидированные бюджеты субъектов Российской Федерации","010","000 10302260010000 110",19100,-7647.33,26747.33]
["НАЛОГИ НА СОВОКУПНЫЙ ДОХОД","010","000 10500000000000 000",3600,"-",3600]
["Единый сельскохозяйственный налог","010","000 10503000010000 110",3600,"-",3600]
["Единый сельскохозяйственный налог","010","000 10503010010000 110",3600,"-",3600]
["Единый сельскохозяйственный налог (сумма платежа (перерасчеты, недоимка и задолженность по соответствующему платежу, в том числе по отмененному))","010","000 10503010011000 110",3600,"-",3600]
["НАЛОГИ НА ИМУЩЕСТВО","010","000 10600000000000 000",42196700,6807675.7599999998,35389024.240000002]
["Налог на имущество физических лиц","010","000 10601000000000 110",1309700,57693.1,1252006.8999999999]
["Налог на имущество физических лиц, взимаемый по ставкам, применяемым к объектам налогообложения, расположенным в границах городских поселений","010","000 10601030130000 110",1309700,57693.1,1252006.8999999999]
["Налог на имущество физических лиц, взимаемый по ставкам, применяемым к объектам налогообложения, расположенным в границах городских поселений (сумма платежа (перерасчеты, недоимка и задолженность по соответствующему платежу, в том числе по отмененному)","010","000 10601030131000 110",1309700,57237.55,1252462.45]
["Налог на имущество физических лиц, взимаемый по ставкам, применяемым к объектам налогообложения, расположенным в границах городских поселений (пени по соответствующему платежу)","010","000 10601030132100 110","-",410.59,"-"]
["Налог на имущество физических лиц, взимаемый по ставкам, применяемым к объектам налогообложения, расположенным в границах городских поселений (прочие поступления)","010","000 10601030134000 110","-",44.96,"-"]
["Транспортный налог","010","000 10604000020000 110",11356000,930090.74,10425909.26]
["Транспортный налог с организаций","010","000 10604011020000 110",2800000,641092.68999999994,{"$f":"IF(OR(D53=\"-\",E53=D53),\"-\",D53-IF(E53=\"-\",0,E53))","v":2158907.31}]
["Транспортный налог с организаций (сумма платежа (перерасчеты, недоимка и задолженность по соответствующему платежу, в том числе по отмененному))","010","000 10604011021000 110",2800000,640981.30000000005,2159018.7000000002]
["Транспортный налог с организаций (пени по соответствующему платежу)","010","000 10604011022100 110","-",111.39,"-"]
["Транспортный налог с физических лиц","010","000 10604012020000 110",8556000,288998.05,8267001.9500000002]
["Транспортный налог с физических лиц (сумма платежа (перерасчеты, недоимка и задолженность по соответствующему платежу, в том числе по отмененному))","010","000 10604012021000 110",8556000,271541.65000000002,8284458.3499999996]
["Транспортный налог с физических лиц (пени по соответствующему платежу)","010","000 10604012022100 110","-",16666.419999999998,"-"]
["Транспортный налог с физических лиц (проценты по соответствующему платежу)","010","000 10604012022200 110","-",112.53,"-"]
["Транспортный налог с физических лиц (прочие поступления)","010","000 10604012024000 110","-",677.45,"-"]
["Земельный налог","010","000 10606000000000 110",29531000,5819891.9199999999,23711108.079999998]
["Земельный налог с организаций","010","000 10606030030000 110",28861000,5634261.5599999996,23226738.440000001]
["Земельный налог с организаций, обладающих земельным участком, расположенным в границах городских поселений","010","000 10606033130000 110",28861000,5634261.5599999996,23226738.440000001]
["Земельный налог с физических лиц","010","000 10606040000000 110",670000,185630.36,484369.64]
["Земельный налог с физических лиц, обладающих земельным участком, расположенным в границах городских поселений","010","000 10606043130000 110",670000,185630.36,484369.64]
["ГОСУДАРСТВЕННАЯ ПОШЛИНА","010","000 10800000000000 000",48400,2000,46400]
["Государственная пошлина за государственную регистрацию, а также за совершение прочих юридически значимых действий","010","000 10807000010000 110",48400,2000,46400]
["Государственная пошлина за выдачу специального разрешения на движение по автомобильным дорогам транспортных средств, осуществляющих перевозки опасных, тяжеловесных и (или) крупногабаритных грузов","010","000 10807170010000 110",48400,2000,46400]
["Государственная пошлина за выдачу органом местного самоуправления поселения специального разрешения на движение по автомобильным дорогам транспортных средств, осуществляющих перевозки опасных, тяжеловесных и (или) крупногабаритных грузов, зачисляемая в бюджеты поселений","010","000 10807175010000 110",48400,2000,46400]
["ДОХОДЫ ОТ ИСПОЛЬЗОВАНИЯ ИМУЩЕСТВА, НАХОДЯЩЕГОСЯ В ГОСУДАРСТВЕННОЙ И МУНИЦИПАЛЬНОЙ СОБСТВЕННОСТИ","010","000 11100000000000 000",31865181.859999999,1995935,29869246.859999999]
["Доходы, получаемые в виде арендной либо иной платы за передачу в возмездное пользование государственного и муниципального имущества (за исключением имущества бюджетных и автономных учреждений, а также имущества государственных и муниципальных унитарных предприятий, в том числе казенных)","010","000 11105000000000 120",29684181.859999999,1563080.53,28121101.329999998]
["Доходы, получаемые в виде арендной платы за земельные участки, государственная собственность на которые не разграничена, а также средства от продажи права на заключение договоров аренды указанных земельных участков","010","000 11105010000000 120",17444300,168621.31,17275678.690000001]
["Доходы, получаемые в виде арендной платы за земельные участки, государственная собственность на которые не разграничена и которые расположены в границах городских поселений, а также средства от продажи права на заключение договоров аренды указанных земельных участков","010","000 11105013130000 120",17444300,168621.31,17275678.690000001]
["Доходы, получаемые в виде арендной платы за земли после разграничения государственной собственности на землю, а также средства от продажи права на заключение договоров аренды указанных земельных участков (за исключением земельных участков бюджетных и автономных учреждений)","010","000 11105020000000 120",1174000,49477.83,1124522.17]
["Доходы, получаемые в виде арендной платы, а также средства от продажи права на заключение договоров аренды за земли, находящиеся в собственности городских поселений (за исключением земельных участков муниципальных бюджетных и автономных учреждений)","010","000 11105025130000 120",1174000,49477.83,1124522.17]
["Доходы от сдачи в аренду имущества, находящегося в оперативном управлении органов государственной власти, органов местного самоуправления, государственных внебюджетных фондов и созданных ими учреждений (за исключением имущества бюджетных и автономных учреждений)","010","000 11105030000000 120",65881.86,618.08000000000004,65263.78]
["Доходы от сдачи в аренду имущества, находящегося в оперативном управлении органов управления городских поселений и созданных ими учреждений (за исключением имущества муниципальных бюджетных и автономных учреждений)","010","000 11105035130000 120",65881.86,618.08000000000004,65263.78]
["Доходы от сдачи в аренду имущества, составляющего государственную (муниципальную) казну (за исключением земельных участков)","010","000 11105070000000 120",11000000,1344363.31,9655636.6899999995]
["Доходы от сдачи в аренду имущества, составляющего казну городских поселений (за исключением земельных участков)","010","000 11105075130000 120",11000000,1344363.31,9655636.6899999995]
["Платежи от государственных и муниципальных унитарных предприятий","010","000 11107000000000 120",1000,"-",1000]
["Доходы от перечисления части прибыли государственных и муниципальных унитарных предприятий, остающейся после уплаты налогов и обязательных платежей","010","000 11107010000000 120",1000,"-",1000]
["Доходы от перечисления части прибыли, остающейся после уплаты налогов и иных обязательных платежей муниципальных унитарных предприятий, созданных городскими поселениями","010","000 11107015130000 120",1000,"-",1000]
["Прочие доходы от использования имущества и прав, находящихся в государственной и муниципальной собственности (за исключением имущества бюджетных и автономных учреждений, а также имущества государственных и муниципальных унитарных предприятий, в том числе казенных)","010","000 11109000000000 120",2180000,432854.47,1747145.53]
["Прочие поступления от использования имущества, находящегося в государственной и муниципальной собственности (за исключением имущества бюджетных и автономных учреждений, а также имущества государственных и муниципальных унитарных предприятий, в том числе казенных)","010","000 11109040000000 120",2180000,432854.47,1747145.53]
["Прочие поступления от использования имущества, находящегося в собственности городских поселений (за исключением имущества муниципальных бюджетных и автономных учреждений, а также имущества муниципальных унитарных предприятий, в том числе казенных)","010","000 11109045130000 120",2180000,432854.47,{"$f":"IF(OR(D85=\"-\",E85=D85),\"-\",D85-IF(E85=\"-\",0,E85))","v":1747145.53}]
["ДОХОДЫ ОТ ОКАЗАНИЯ ПЛАТНЫХ УСЛУГ (РАБОТ) И КОМПЕНСАЦИИ ЗАТРАТ ГОСУДАРСТВА","010","000 11300000000000 000",59238.34,109095.49,-49857.150000000009]
["Доходы от оказания платных услуг (работ)","010","000 11301000000000 130",59238.34,109095.49,-49857.150000000009]
["Прочие доходы от оказания платных услуг (работ)","010","000 11301990000000 130",59238.34,109095.49,-49857.150000000009]
["Прочие доходы от оказания платных услуг (работ) получателями средств бюджетов городских поселений","010","000 11301995130001 130","-",97390.35,"-"]
["Прочие доходы от оказания платных услуг (работ) получателями средств бюджетов городских поселений","010","000 11301995130005 130",59238.34,11705.14,47533.2]
["ДОХОДЫ ОТ ПРОДАЖИ МАТЕРИАЛЬНЫХ И НЕМАТЕРИАЛЬНЫХ АКТИВОВ","010","000 11400000000000 000",4200000,445158.58,3754841.42]
["Доходы от реализации имущества, находящегося в государственной и муниципальной собственности (за исключением имущества бюджетных и автономных учреждений, а также имущества государственных и муниципальных унитарных предприятий, в том числе казенных)","010","000 11402000000000 000",4000000,416274.26,3583725.74]
["Доходы от реализации имущества, находящегося в собственности городских поселений (за исключением движимого имущества муниципальных бюджетных и автономных учреждений, а также имущества муниципальных унитарных предприятий, в том числе казенных), в части реализации основных средств по указанному имуществу","010","000 11402050130000 410",4000000,416274.26,3583725.74]
["Доходы от реализации иного имущества, находящегося в собственности городских поселений (за исключением имущества муниципальных бюджетных и автономных учреждений, а также имущества муниципальных унитарных предприятий, в том числе казенных), в части реализации основных средств по указанному имуществу","010","000 11402053130000 410",4000000,416274.26,3583725.74]
["Доходы от продажи земельных участков, находящихся в государственной и муниципальной собственности (за исключением земельных участков бюджетных и автономных учреждений)","010","000 11406000000000 430",200000,28884.32,171115.68]
["Доходы от продажи земельных участков, государственная собственность на которые не разграничена","010","000 11406010000000 430",200000,28884.32,171115.68]
["Доходы от продажи земельных участков, государственная собственность на которые не разграничена и которые расположены в границах городских поселений","010","000 11406013130000 430",200000,28884.32,171115.68]
["ШТРАФЫ, САНКЦИИ, ВОЗМЕЩЕНИЕ УЩЕРБА","010","000 11600000000000 000",250000,5617.3,244382.7]
["Поступления сумм в возмещение вреда, причиняемого автомобильным дорогам транспортными средствами, осуществляющими перевозки тяжеловесных и (или) крупногабаритных грузов","010","000 11637000000000 140",50000,417.3,49582.7]
["Поступления сумм в возмещение вреда, причиняемого автомобильным дорогам местного значения транспортными средствами, осуществляющими перевозки тяжеловесных и (или) крупногабаритных грузов, зачисляемые в бюджеты городских поселений","010","000 11637040130000 140",50000,417.3,49582.7]
["Прочие поступления от денежных взысканий (штрафов) и иных сумм в возмещение ущерба","010","000 11690000000000 140",200000,5200,194800]
["Прочие поступления от денежных взысканий (штрафов) и иных сумм в возмещение ущерба, зачисляемые в бюджеты городских поселений","010","000 11690050130000 140",200000,5200,194800]
["ПРОЧИЕ НЕНАЛОГОВЫЕ ДОХОДЫ","010","000 11700000000000 000","-",-8623.5400000000009,"-"]
["Невыясненные поступления","010","000 11701000000000 180","-",-8623.5400000000009,"-"]
["Невыясненные поступления, зачисляемые в бюджеты городских поселений","010","000 11701050130000 180","-",-8623.5400000000009,"-"]
["БЕЗВОЗМЕЗДНЫЕ ПОСТУПЛЕНИЯ","010","000 20000000000000 000",104298896.15000001,-49136583.159999996,153435479.31]
["БЕЗВОЗМЕЗДНЫЕ ПОСТУПЛЕНИЯ ОТ ДРУГИХ БЮДЖЕТОВ БЮДЖЕТНОЙ СИСТЕМЫ РОССИЙСКОЙ ФЕДЕРАЦИИ","010","000 20200000000000 000",104298896.15000001,1634240,102664656.15000001]
["Дотации бюджетам субъектов Российской Федерации и муниципальных образований","010","000 20201000000000 151",5206300,1041260,4165040]
["Дотации на выравнивание бюджетной обеспеченности","010","000 20201001000000 151",5206300,1041260,4165040]
["Дотации бюджетам городских поселений на выравнивание бюджетной обеспеченности","010","000 20201001130000 151",5206300,1041260,4165040]
["Субсидии бюджетам бюджетной системы Российской Федерации (межбюджетные субсидии)","010","000 20202000000000 151",72817489.769999996,"-",72817489.769999996]
["Субсидии бюджетам на софинансирование капитальных вложений в объекты государственной (муниципальной) собственности","010","000 20202077000000 151",20000000,"-",20000000]
["Субсидии бюджетам городских поселений на софинансирование капитальных вложений в объекты муниципальной собственности","010","000 20202077130000 151",20000000,"-",20000000]
["Субсидии бюджетам муниципальных образований на обеспечение мероприятий по капитальному ремонту многоквартирных домов, переселению граждан из аварийного жилищного фонда и модернизации систем коммунальной инфраструктуры за счет средств бюджетов","010","000 20202089000000 151",46962489.770000003,"-",46962489.770000003]
["Субсидии бюджетам городских поселений на обеспечение мероприятий по капитальному ремонту многоквартирных домов, переселению граждан из аварийного жилищного фонда и модернизации систем коммунальной инфраструктуры за счет средств бюджетов","010","000 20202089130000 151",46962489.770000003,"-",46962489.770000003]
["Прочие субсидии","010","000 20202999000000 151",5855000,"-",5855000]
["Прочие субсидии бюджетам городских поселений","010","000 20202999130000 151",5855000,"-",{"$f":"IF(OR(D117=\"-\",E117=D117),\"-\",D117-IF(E117=\"-\",0,E117))","v":5855000}]
["Субвенции бюджетам субъектов Российской Федерации и муниципальных образований","010","000 20203000000000 151",2223798,592980,1630818]
["Субвенции бюджетам на осуществление первичного воинского учета на территориях, где отсутствуют военные комиссариаты","010","000 20203015000000 151",1100598,312180,788418]
["Субвенции бюджетам городских поселений на осуществление первичного воинского учета на территориях, где отсутствуют военные комиссариаты","010","000 20203015130000 151",1100598,312180,788418]
["Субвенции местным бюджетам на выполнение передаваемых полномочий субъектов Российской Федерации","010","000 20203024000000 151",1123200,280800,842400]
["Субвенции бюджетам городских поселений на выполнение передаваемых полномочий субъектов Российской Федерации","010","000 20203024130000 151",1123200,280800,842400]
["Иные межбюджетные трансферты","010","000 20204000000000 151",24051308.379999999,"-",24051308.379999999]
["Прочие межбюджетные трансферты, передаваемые бюджетам","010","000 20204999000000 151",24051308.379999999,"-",24051308.379999999]
["Прочие межбюджетные трансферты, передаваемые бюджетам городских поселений","010","000 20204999130000 151",24051308.379999999,"-",24051308.379999999]
["ВОЗВРАТ ОСТАТКОВ СУБСИДИЙ, СУБВЕНЦИЙ И ИНЫХ МЕЖБЮДЖЕТНЫХ ТРАНСФЕРТОВ, ИМЕЮЩИХ ЦЕЛЕВОЕ НАЗНАЧЕНИЕ, ПРОШЛЫХ ЛЕТ","010","000 21900000000000 000","-",-50770823.159999996,"-"]
["Возврат остатков субсидий, субвенций и иных межбюджетных трансфертов, имеющих целевое назначение, прошлых лет из бюджетов городских поселений","010","000 21905000130000 151","-",-50770823.159999996,"-"]

{"sheet":"Расходы","index":1,"n_rows":522,"n_cols":6,"rows_kept":522,"cut":false,"hidden":false,"merged":[[3,5,8,5],[1,0,1,3],[3,0,10,0],[3,1,10,1],[3,2,8,2],[3,3,10,3],[3,4,8,4]]}
[]
["                          2. Расходы бюджета",null,null,null,null,"Форма 0503117  с.2"]
[]
[" Наименование показателя","Код строки","Код расхода по бюджетной классификации","Утвержденные бюджетные назначения","Исполнено","Неисполненные назначения"]
[]
[]
[]
[]
[]
[]
[]
[1,2,3,"4","5","6"]
["Расходы бюджета - всего","200","*** 96000000000000 000",232986168.84,10391153.1,{"$f":"IF(OR(D13=\"-\",E13=D13),\"-\",D13-IF(E13=\"-\",0,E13))","v":222595015.74000001}]
["в том числе:"]
["ОБЩЕГОСУДАРСТВЕННЫЕ ВОПРОСЫ","200","000 0100 0000000 000 000 ",46461841.969999999,2675785.2200000002,{"$f":"IF(OR(D15=\"-\",E15=D15),\"-\",D15-IF(E15=\"-\",0,E15))","v":43786056.75}]
["Функционирование законодательных (представительных) органов государственной власти и представительных органов муниципальных образований","200","000 0103 0000000 000 000 ",530178,114926,415252]
["Обеспечение деятельности Совета депутатов","200","000 0103 Г110000 000 000 ",488178,114926,373252]
["Расходы на обеспечение функций органов местного самоуправления в рамках обеспечения деятельности Совета депутатов","200","000 0103 Г11Г015 000 000 ",28471,"-",28471]
["Иные выплаты персоналу государственных (муниципальных) органов, за исключением фонда оплаты труда","200","000 0103 Г11Г015 122 000 ",26111,"-",26111]
["Расходы","200","000 0103 Г11Г015 122 200 ",26111,"-",26111]
["Оплата труда и начисления на выплаты по оплате труда","200","000 0103 Г11Г015 122 210 ",20048,"-",20048]
["Прочие выплаты","200","000 0103 Г11Г015 122 212 ",20048,"-",20048]
["Оплата работ, услуг","200","000 0103 Г11Г015 122 220 ",6063,"-",6063]
["Транспортные услуги","200","000 0103 Г11Г015 122 222 ",3063,"-",3063]
["Прочие работы, услуги","200","000 0103 Г11Г015 122 226 ",3000,"-",3000]
["Закупка товаров, работ, услуг в сфере информационно-коммуникационных технологий","200","000 0103 Г11Г015 242 000 ",2360,"-",2360]
["Расходы","200","000 0103 Г11Г015 242 200 ",2360,"-",2360]
["Оплата работ, услуг","200","000 0103 Г11Г015 242 220 ",2360,"-",2360]
["Прочие работы, услуги","200","000 0103 Г11Г015 242 226 ",2360,"-",2360]
["Межбюджетные трансферты бюджетам муниципальных районов из бюджетов поселений на исполнение полномочий по осуществлению внешнего муниципального финансового контроля в рамках обеспечения деятельности Совета депутатов","200","000 0103 Г11П703 000 000 ",459707,114926,344781]
["Иные межбюджетные трансферты","200","000 0103 Г11П703 540 000 ",459707,114926,344781]
["Расходы","200","000 0103 Г11П703 540 200 ",459707,114926,344781]
["Безвозмездные перечисления бюджетам","200","000 0103 Г11П703 540 250 ",459707,114926,344781]
["Перечисления другим бюджетам бюджетной системы Российской Федерации","200","000 0103 Г11П703 540 251 ",459707,114926,344781]
["Непрограммные расходы органов местного самоуправления по решению общегосударственных вопросов","200","000 0103 Г210000 000 000 ",42000,"-",42000]
["Премирование и награждение юридических и физических лиц по решению совета депутатов МО \"Город Пикалево\" вне системы оплаты труда в рамках непрограммных расходов органов местного самоуправления по решению общегосударственных вопросов","200","000 0103 Г21Г301 000 000 ",42000,"-",42000]
["Публичные нормативные выплаты гражданам несоциального характера","200","000 0103 Г21Г301 330 000 ",42000,"-",42000]
["Расходы","200","000 0103 Г21Г301 330 200 ",42000,"-",42000]
["Прочие расходы","200","000 0103 Г21Г301 330 290 ",42000,"-",42000]
["Функционирование Правительства Российской Федерации, высших исполнительных органов государственной власти субъектов Российской Федерации, местных администраций","200","000 0104 0000000 000 000 ",21776207.969999999,1707969.91,20068238.059999999]
["Обеспечение деятельности главы администрации","200","000 0104 Г120000 000 000 ",1565225,113187.82,1452037.18]
["Расходы на выплаты по оплате труда работников органов местного самоуправления  в рамках обеспечения деятельности главы администрации","200","000 0104 Г12Г014 000 000 ",1533225,112387.82,1420837.18]
["Фонд оплаты труда государственных (муниципальных) органов и взносы по обязательному социальному страхованию","200","000 0104 Г12Г014 121 000 ",1533225,112387.82,1420837.18]
["Расходы","200","000 0104 Г12Г014 121 200 ",1533225,112387.82,1420837.18]
["Оплата труда и начисления на выплаты по оплате труда","200","000 0104 Г12Г014 121 210 ",1533225,112387.82,1420837.18]
["Заработная плата","200","000 0104 Г12Г014 121 211 ",1177592,88638.88,1088953.1200000001]
["Начисления на выплаты по оплате труда","200","000 0104 Г12Г014 121 213 ",355633,23748.94,331884.06]
["Расходы на обеспечение функций органов местного самоуправления в рамках обеспечения деятельности главы администрации","200","000 0104 Г12Г015 000 000 ",32000,800,31200]
["Иные выплаты персоналу государственных (муниципальных) органов, за исключением фонда оплаты труда","200","000 0104 Г12Г015 122 000 ",32000,800,31200]
["Расходы","200","000 0104 Г12Г015 122 200 ",32000,800,31200]
["Оплата труда и начисления на выплаты по оплате труда","200","000 0104 Г12Г015 122 210 ",32000,800,31200]
["Прочие выплаты","200","000 0104 Г12Г015 122 212 ",32000,800,31200]
["Обеспечение деятельности администрации","200","000 0104 Г130000 000 000 ",20210982.969999999,1594782.09,18616200.879999999]
["Расходы на выплаты по оплате труда работников органов местного самоуправления в рамках обеспечения деятельности администрации","200","000 0104 Г13Г014 000 000 ",19544492,1539022.55,18005469.449999999]
["Фонд оплаты труда государственных (муниципальных) органов и взносы по обязательному социальному страхованию","200","000 0104 Г13Г014 121 000 ",19544492,1539022.55,18005469.449999999]
["Расходы","200","000 0104 Г13Г014 121 200 ",19544492,1539022.55,18005469.449999999]
["Оплата труда и начисления на выплаты по оплате труда","200","000 0104 Г13Г014 121 210 ",19544492,1539022.55,18005469.449999999]
["Заработная плата","200","000 0104 Г13Г014 121 211 ",15011131,1221851.5,13789279.5]
["Начисления на выплаты по оплате труда","200","000 0104 Г13Г014 121 213 ",4533361,317171.05,4216189.95]
["Расходы на обеспечение функций органов местного самоуправления в рамках обеспечения деятельности  администрации","200","000 0104 Г13Г015 000 000 ",428790.97,16142.88,412648.08999999997]
["Иные выплаты персоналу государственных (муниципальных) органов, за исключением фонда оплаты труда","200","000 0104 Г13Г015 122 000 ",118000,3698,114302]
["Расходы","200","000 0104 Г13Г015 122 200 ",118000,3698,114302]
["Оплата труда и начисления на выплаты по оплате труда","200","000 0104 Г13Г015 122 210 ",30000,2400,27600]
["Прочие выплаты","200","000 0104 Г13Г015 122 212 ",30000,2400,27600]
["Оплата работ, услуг","200","000 0104 Г13Г015 122 220 ",88000,1298,86702]
["Транспортные услуги","200","000 0104 Г13Г015 122 222 ",70000,1298,68702]
["Прочие работы, услуги","200","000 0104 Г13Г015 122 226 ",18000,"-",18000]
["Закупка товаров, работ, услуг в сфере информационно-коммуникационных технологий","200","000 0104 Г13Г015 242 000 ",226218,8400,217818]
["Расходы","200","000 0104 Г13Г015 242 200 ",226218,8400,217818]
["Оплата работ, услуг","200","000 0104 Г13Г015 242 220 ",226218,8400,217818]
["Услуги связи","200","000 0104 Г13Г015 242 221 ",78000,8400,69600]
["Прочие работы, услуги","200","000 0104 Г13Г015 242 226 ",148218,"-",148218]
["Прочая закупка товаров, работ и услуг для обеспечения государственных (муниципальных) нужд","200","000 0104 Г13Г015 244 000 ",77782,2000,75782]
["Расходы","200","000 0104 Г13Г015 244 200 ",77782,2000,75782]
["Оплата работ, услуг","200","000 0104 Г13Г015 244 220 ",77782,2000,75782]
["Работы, услуги по содержанию имущества","200","000 0104 Г13Г015 244 225 ",20782,"-",20782]
["Прочие работы, услуги","200","000 0104 Г13Г015 244 226 ",57000,2000,55000]
["Уплата прочих налогов, сборов и иных платежей","200","000 0104 Г13Г015 852 000 ",2980,744.88,2235.12]
["Расходы","200","000 0104 Г13Г015 852 200 ",2980,744.88,{"$f":"IF(OR(D79=\"-\",E79=D79),\"-\",D79-IF(E79=\"-\",0,E79))","v":2235.12}]
["Прочие расходы","200","000 0104 Г13Г015 852 290 ",2980,744.88,2235.12]
["Уплата иных платежей","200","000 0104 Г13Г015 853 000 ",3810.97,1300,2510.9699999999998]
["Расходы","200","000 0104 Г13Г015 853 200 ",3810.97,1300,2510.9699999999998]
["Прочие расходы","200","000 0104 Г13Г015 853 290 ",3810.97,1300,2510.9699999999998]
["Межбюджетные трансферты бюджетам муниципальных районов из бюджетов поселений на исполнение полномочий по осуществлению внешнего муниципального жилищного контроля в рамках непрограммных расходов органов местного самоуправления по вопросам жилищно-коммунального хозяйства","200","000 0104 Г13П704 000 000 ",237700,39616.660000000003,198083.34]
["Иные межбюджетные трансферты","200","000 0104 Г13П704 540 000 ",237700,39616.660000000003,198083.34]
["Расходы","200","000 0104 Г13П704 540 200 ",237700,39616.660000000003,198083.34]
["Безвозмездные перечисления бюджетам","200","000 0104 Г13П704 540 250 ",237700,39616.660000000003,198083.34]
["Перечисления другим бюджетам бюджетной системы Российской Федерации","200","000 0104 Г13П704 540 251 ",237700,39616.660000000003,198083.34]
["Резервные фонды","200","000 0111 0000000 000 000 ",423000,"-",423000]
["Непрограммные расходы органов местного самоуправления по решению общегосударственных вопросов","200","000 0111 Г210000 000 000 ",388000,"-",388000]
["Резервный фонд администрации  в рамках непрограммных расходов  органов местного самоуправления по решению общегосударственных вопросов","200","000 0111 Г21Г101 000 000 ",388000,"-",388000]
["Резервные средства","200","000 0111 Г21Г101 870 000 ",388000,"-",388000]
["Расходы","200","000 0111 Г21Г101 870 200 ",388000,"-",388000]
["Прочие расходы","200","000 0111 Г21Г101 870 290 ",388000,"-",388000]
["Подпрограмма \"Предупреждение чрезвычайных ситуаций, защита населения и территорий от чрезвычайных ситуаций природного и техногенного характера, развитие гражданской обороны, обеспечение пожарной безопасности и безопасности на водных объектах\" муниципальной программы \"Безопасность в МО \"Город Пикалево\"","200","000 0111 П410000 000 000 ",35000,"-",35000]
["Резервный фонд администрации по ликвидации чрезвычайных ситуаций природного и техногенного характера и стихийных бедствий  в рамках подпрограммы \"Предупреждение чрезвычайных ситуаций, защита населения и территорий от чрезвычайных ситуаций природного и техногенного характера, развитие гражданской обороны, обеспечение пожарной безопасности и безопасности на водных объектах\" муниципальной  программы \"Безопасность в МО \"Город Пикалево\"","200","000 0111 П41П104 000 000 ",35000,"-",35000]
["Резервные средства","200","000 0111 П41П104 870 000 ",35000,"-",35000]
["Расходы","200","000 0111 П41П104 870 200 ",35000,"-",35000]
["Прочие расходы","200","000 0111 П41П104 870 290 ",35000,"-",35000]
["Другие общегосударственные вопросы","200","000 0113 0000000 000 000 ",23732456,852889.31,22879566.690000001]
["Непрограммные расходы органов местного самоуправления по решению общегосударственных вопросов","200","000 0113 Г210000 000 000 ",15753064,748584.7,15004479.300000001]
["Обеспечение деятельности муниципальных казенных учреждений в рамках непрограммных расходов  органов местного самоуправления по решению общегосударственных вопросов","200","000 0113 Г21Г016 000 000 ",7455609,622723.63,6832885.3700000001]
["Фонд оплаты труда казенных учреждений и взносы по обязательному социальному страхованию","200","000 0113 Г21Г016 111 000 ",3251915.45,285407.24,2966508.21]
["Расходы","200","000 0113 Г21Г016 111 200 ",3251915.45,285407.24,2966508.21]
["Оплата труда и начисления на выплаты по оплате труда","200","000 0113 Г21Г016 111 210 ",3251915.45,285407.24,2966508.21]
["Заработная плата","200","000 0113 Г21Г016 111 211 ",2497572.64,228779.97,2268792.67]
["Начисления на выплаты по оплате труда","200","000 0113 Г21Г016 111 213 ",754342.81,56627.27,697715.54]
["Иные выплаты персоналу казенных учреждений, за исключением фонда оплаты труда","200","000 0113 Г21Г016 112 000 ",35700,3200,32500]
["Расходы","200","000 0113 Г21Г016 112 200 ",35700,3200,32500]
["Оплата труда и начисления на выплаты по оплате труда","200","000 0113 Г21Г016 112 210 ",26400,3200,23200]
["Прочие выплаты","200","000 0113 Г21Г016 112 212 ",26400,3200,23200]
["Оплата работ, услуг","200","000 0113 Г21Г016 112 220 ",9300,"-",9300]
["Прочие работы, услуги","200","000 0113 Г21Г016 112 226 ",9300,"-",9300]
["Закупка товаров, работ, услуг в сфере информационно-коммуникационных технологий","200","000 0113 Г21Г016 242 000 ",983981,72768.62,911212.38]
["Расходы","200","000 0113 Г21Г016 242 200 ",566301,72768.62,493532.38]
["Оплата работ, услуг","200","000 0113 Г21Г016 242 220 ",566301,72768.62,493532.38]
["Услуги связи","200","000 0113 Г21Г016 242 221 ",397728,10300.620000000001,387427.38]
["Работы, услуги по содержанию имущества","200","000 0113 Г21Г016 242 225 ",25760,800,24960]
["Прочие работы, услуги","200","000 0113 Г21Г016 242 226 ",142813,61668,81145]
["Поступление нефинансовых активов","200","000 0113 Г21Г016 242 300 ",417680,"-",417680]
["Увеличение стоимости основных средств","200","000 0113 Г21Г016 242 310 ",121980,"-",121980]
["Увеличение стоимости материальных запасов","200","000 0113 Г21Г016 242 340 ",295700,"-",295700]
["Прочая закупка товаров, работ и услуг для обеспечения государственных (муниципальных) нужд","200","000 0113 Г21Г016 244 000 ",3179396.55,260727.83,2918668.7199999997]
["Расходы","200","000 0113 Г21Г016 244 200 ",2283139.5499999998,196835.75,2086303.7999999998]
["Оплата работ, услуг","200","000 0113 Г21Г016 244 220 ",2188139.5499999998,196835.75,1991303.7999999998]
["Услуги связи","200","000 0113 Г21Г016 244 221 ",61500,5500,56000]
["Коммунальные услуги","200","000 0113 Г21Г016 244 223 ",726746,84577.69,642168.31000000006]
["Арендная плата за пользование имуществом","200","000 0113 Г21Г016 244 224 ",81883,"-",81883]
["Работы, услуги по содержанию имущества","200","000 0113 Г21Г016 244 225 ",684216,63969.47,620246.53]
["Прочие работы, услуги","200","000 0113 Г21Г016 244 226 ",633794.55000000005,42788.59,591005.96000000008]
["Прочие расходы","200","000 0113 Г21Г016 244 290 ",95000,"-",95000]
["Поступление нефинансовых активов","200","000 0113 Г21Г016 244 300 ",896257,63892.08,832364.92]
["Увеличение стоимости основных средств","200","000 0113 Г21Г016 244 310 ",48400,"-",48400]
["Увеличение стоимости материальных запасов","200","000 0113 Г21Г016 244 340 ",847857,63892.08,783964.92]
["Уплата прочих налогов, сборов и иных платежей","200","000 0113 Г21Г016 852 000 ",4616,619.94000000000005,3996.06]
["Расходы","200","000 0113 Г21Г016 852 200 ",4616,619.94000000000005,3996.06]
["Прочие расходы","200","000 0113 Г21Г016 852 290 ",4616,619.94000000000005,3996.06]
["Обеспечение управления активами и приватизации муниципального имущества  в рамках непрограммных расходов  органов местного самоуправления по решению общегосударственных вопросов","200","000 0113 Г21Г103 000 000 ",600000,3500,596500]
["Прочая закупка товаров, работ и услуг для обеспечения государственных (муниципальных) нужд","200","000 0113 Г21Г103 244 000 ",600000,3500,596500]
["Расходы","200","000 0113 Г21Г103 244 200 ",600000,3500,596500]
["Оплата работ, услуг","200","000 0113 Г21Г103 244 220 ",600000,3500,596500]
["Прочие работы, услуги","200","000 0113 Г21Г103 244 226 ",600000,3500,596500]
["Содержание и обслуживание объектов муниципального имущества в рамках непрограммных расходов органов местного самоуправления по решению общегосударственных вопросов","200","000 0113 Г21Г104 000 000 ",7422275,98245.07,{"$f":"IF(OR(D143=\"-\",E143=D143),\"-\",D143-IF(E143=\"-\",0,E143))","v":7324029.9299999997}]
["Прочая закупка товаров, работ и услуг для обеспечения государственных (муниципальных) нужд","200","000 0113 Г21Г104 244 000 ",7043460,3615.92,7039844.0800000001]
["Расходы","200","000 0113 Г21Г104 244 200 ",6365599.6100000003,3615.92,6361983.6900000004]
["Оплата работ, услуг","200","000 0113 Г21Г104 244 220 ",6365599.6100000003,3615.92,6361983.6900000004]
["Работы, услуги по содержанию имущества","200","000 0113 Г21Г104 244 225 ",6365599.6100000003,3615.92,6361983.6900000004]
["Поступление нефинансовых активов","200","000 0113 Г21Г104 244 300 ",677860.39,"-",677860.39]
["Увеличение стоимости основных средств","200","000 0113 Г21Г104 244 310 ",677860.39,"-",677860.39]
["Субсидии юридическим лицам (кроме некоммерческих организаций), индивидуальным предпринимателям, физическим лицам","200","000 0113 Г21Г104 810 000 ",378815,94629.15,284185.84999999998]
["Расходы","200","000 0113 Г21Г104 810 200 ",378815,94629.15,284185.84999999998]
["Безвозмездные перечисления организациям","200","000 0113 Г21Г104 810 240 ",378815,94629.15,284185.84999999998]
["Безвозмездные перечисления организациям, за исключением государственных и муниципальных организаций","200","000 0113 Г21Г104 810 242 ",378815,94629.15,284185.84999999998]
["Ежегодный членский взнос в Ассоциацию \"Совет муниципальных образований Ленинградской области\" в рамках непрограммных расходов  органов местного самоуправления по решению общегосударственных вопросов","200","000 0113 Г21Г105 000 000 ",36655,"-",36655]
["Уплата иных платежей","200","000 0113 Г21Г105 853 000 ",36655,"-",36655]
["Расходы","200","000 0113 Г21Г105 853 200 ",36655,"-",36655]
["Прочие расходы","200","000 0113 Г21Г105 853 290 ",36655,"-",36655]
["Ежегодный членский взнос в Союз малых городов Российской Федерации в рамках непрограммных расходов  органов местного самоуправления по решению общегосударственных вопросов","200","000 0113 Г21Г106 000 000 ",21525,"-",21525]
["Уплата иных платежей","200","000 0113 Г21Г106 853 000 ",21525,"-",21525]
["Расходы","200","000 0113 Г21Г106 853 200 ",21525,"-",21525]
["Прочие расходы","200","000 0113 Г21Г106 853 290 ",21525,"-",21525]
["Обеспечение органов местного самоуправления статистической информацией в рамках непрограммных расходов  органов местного самоуправления по решению общегосударственных вопросов","200","000 0113 Г21Г107 000 000 ",83000,24116,58884]
["Прочая закупка товаров, работ и услуг для обеспечения государственных (муниципальных) нужд","200","000 0113 Г21Г107 244 000 ",83000,24116,58884]
["Расходы","200","000 0113 Г21Г107 244 200 ",83000,24116,58884]
["Оплата работ, услуг","200","000 0113 Г21Г107 244 220 ",83000,24116,58884]
["Прочие работы, услуги","200","000 0113 Г21Г107 244 226 ",83000,24116,58884]
["Мероприятия по диспансеризации лиц, замещающих муниципальные должности и должности муниципальных служащих в рамках непрограммных расходов  органов местного самоуправления по решению общегосударственных вопросов","200","000 0113 Г21Г108 000 000 ",84000,"-",84000]
["Прочая закупка товаров, работ и услуг для обеспечения государственных (муниципальных) нужд","200","000 0113 Г21Г108 244 000 ",84000,"-",84000]
["Расходы","200","000 0113 Г21Г108 244 200 ",84000,"-",84000]
["Оплата работ, услуг","200","000 0113 Г21Г108 244 220 ",84000,"-",84000]
["Прочие работы, услуги","200","000 0113 Г21Г108 244 226 ",84000,"-",84000]
["Исполнение судебных актов, вступивших в законную силу, по искам к МО \"Город Пикалево\" в рамках непрограммных расходов  органов местного самоуправления по решению общегосударственных вопросов","200","000 0113 Г21Г109 000 000 ",50000,"-",50000]
["Исполнение судебных актов Российской Федерации и мировых соглашений по возмещению вреда, причиненного в результате незаконных действий (бездействия) органов государственной власти (государственных органов), органов местного самоуправления либо должностных лиц этих органов, а также в результате деятельности казенных учреждений","200","000 0113 Г21Г109 831 000 ",50000,"-",50000]
["Расходы","200","000 0113 Г21Г109 831 200 ",50000,"-",50000]
["Прочие расходы","200","000 0113 Г21Г109 831 290 ",50000,"-",50000]
["Подпрограмма \"Обеспечение правопорядка и профилактика правонарушений\" муниципальной  программы \"Безопасность в МО \"Город Пикалево\"","200","000 0113 П420000 000 000 ",7543200,90899.21,7452300.79]
["Создание в МО \"Город Пикалево\" аппаратно-программного комплекса автоматизированной информационной системы \"Безопасный город\" за счет средств областного бюджета в рамках подпрограммы \"Обеспечение правопорядка и профилактика правонарушений\" муниципальной программы \"Безопасность в МО \"Город Пикалево\"","200","000 0113 П427043 000 000 ",5700000,"-",5700000]
["Прочая закупка товаров, работ и услуг для обеспечения государственных (муниципальных) нужд","200","000 0113 П427043 244 000 ",5700000,"-",5700000]
["Расходы","200","000 0113 П427043 244 200 ",5700000,"-",5700000]
["Оплата работ, услуг","200","000 0113 П427043 244 220 ",5700000,"-",5700000]
["Прочие работы, услуги","200","000 0113 П427043 244 226 ",5700000,"-",5700000]
["Профилактика безнадзорности и правонарушений несовершеннолетних за счет средств субвенции областного бюджета в рамках подпрограммы \"Обеспечение правопорядка и профилактика правонарушений\" государственной программы Ленинградской области \"Безопасность Ленинградской области\" в рамках подпрограммы \"Обеспечение правопорядка и профилактика правонарушений\" муниципальной  программы \"Безопасность в МО \"Город Пикалево\"","200","000 0113 П427133 000 000 ",555100,48652.18,506447.82]
["Фонд оплаты труда государственных (муниципальных) органов и взносы по обязательному социальному страхованию","200","000 0113 П427133 121 000 ",529872,46605.08,483266.92]
["Расходы","200","000 0113 П427133 121 200 ",529872,46605.08,483266.92]
["Оплата труда и начисления на выплаты по оплате труда","200","000 0113 П427133 121 210 ",529872,46605.08,483266.92]
["Заработная плата","200","000 0113 П427133 121 211 ",406968,37650.6,369317.4]
["Начисления на выплаты по оплате труда","200","000 0113 П427133 121 213 ",122904,8954.48,113949.52]
["Иные выплаты персоналу государственных (муниципальных) органов, за исключением фонда оплаты труда","200","000 0113 П427133 122 000 ",800,200,600]
["Расходы","200","000 0113 П427133 122 200 ",800,200,600]
["Оплата труда и начисления на выплаты по оплате труда","200","000 0113 П427133 122 210 ",800,200,600]
["Прочие выплаты","200","000 0113 П427133 122 212 ",800,200,600]
["Закупка товаров, работ, услуг в сфере информационно-коммуникационных технологий","200","000 0113 П427133 242 000 ",16995,1662.6,15332.4]
["Расходы","200","000 0113 П427133 242 200 ",12195,1662.6,10532.4]
["Оплата работ, услуг","200","000 0113 П427133 242 220 ",12195,1662.6,10532.4]
["Услуги связи","200","000 0113 П427133 242 221 ",12195,1662.6,10532.4]
["Поступление нефинансовых активов","200","000 0113 П427133 242 300 ",4800,"-",4800]
["Увеличение стоимости материальных запасов","200","000 0113 П427133 242 340 ",4800,"-",4800]
["Прочая закупка товаров, работ и услуг для обеспечения государственных (муниципальных) нужд","200","000 0113 П427133 244 000 ",7433,184.5,7248.5]
["Расходы","200","000 0113 П427133 244 200 ",6400,184.5,6215.5]
["Оплата работ, услуг","200","000 0113 П427133 244 220 ",6400,184.5,6215.5]
["Услуги связи","200","000 0113 П427133 244 221 ",6400,184.5,6215.5]
["Поступление нефинансовых активов","200","000 0113 П427133 244 300 ",1033,"-",1033]
["Увеличение стоимости материальных запасов","200","000 0113 П427133 244 340 ",1033,"-",1033]
["Мероприятия в сфере административных правоотношений за счет средств субвенции областного бюджета в рамках подпрограммы \"Обеспечение правопорядка и профилактика правонарушений\" государственной программы Ленинградской области \"Безопасность Ленинградской области\" в рамках подпрограммы \"Обеспечение правопорядка и профилактика правонарушений\" муниципальной  программы \"Безопасность в МО \"Город Пикалево\"","200","000 0113 П427134 000 000 ",568100,42247.03,525852.97]
["Фонд оплаты труда государственных (муниципальных) органов и взносы по обязательному социальному страхованию","200","000 0113 П427134 121 000 ",529872,42247.03,487624.97]
["Расходы","200","000 0113 П427134 121 200 ",529872,42247.03,487624.97]
["Оплата труда и начисления на выплаты по оплате труда","200","000 0113 П427134 121 210 ",529872,42247.03,{"$f":"IF(OR(D207=\"-\",E207=D207),\"-\",D207-IF(E207=\"-\",0,E207))","v":487624.97}]
["Заработная плата","200","000 0113 П427134 121 211 ",406968,33375.599999999999,373592.4]
["Начисления на выплаты по оплате труда","200","000 0113 П427134 121 213 ",122904,8871.43,114032.57]
["Закупка товаров, работ, услуг в сфере информационно-коммуникационных технологий","200","000 0113 П427134 242 000 ",5100,"-",5100]
["Расходы","200","000 0113 П427134 242 200 ",2100,"-",2100]
["Оплата работ, услуг","200","000 0113 П427134 242 220 ",2100,"-",2100]
["Работы, услуги по содержанию имущества","200","000 0113 П427134 242 225 ",2100,"-",2100]
["Поступление нефинансовых активов","200","000 0113 П427134 242 300 ",3000,"-",3000]
["Увеличение стоимости материальных запасов","200","000 0113 П427134 242 340 ",3000,"-",3000]
["Прочая закупка товаров, работ и услуг для обеспечения государственных (муниципальных) нужд","200","000 0113 П427134 244 000 ",33128,"-",33128]
["Расходы","200","000 0113 П427134 244 200 ",27500,"-",27500]
["Оплата работ, услуг","200","000 0113 П427134 244 220 ",27500,"-",27500]
["Услуги связи","200","000 0113 П427134 244 221 ",27500,"-",27500]
["Поступление нефинансовых активов","200","000 0113 П427134 244 300 ",5628,"-",5628]
["Увеличение стоимости материальных запасов","200","000 0113 П427134 244 340 ",5628,"-",5628]
["Создание в МО \"Город Пикалево\"  аппаратно-программного комплекса автоматизированной информационной системы \"Безопасный город\" в рамках подпрограммы \"Обеспечение правопорядка и профилактика правонарушений\" муниципальной  программы \"Безопасность в МО \"Город Пикалево\"","200","000 0113 П42П105 000 000 ",720000,"-",720000]
["Прочая закупка товаров, работ и услуг для обеспечения государственных (муниципальных) нужд","200","000 0113 П42П105 244 000 ",720000,"-",720000]
["Расходы","200","000 0113 П42П105 244 200 ",720000,"-",720000]
["Оплата работ, услуг","200","000 0113 П42П105 244 220 ",720000,"-",720000]
["Прочие работы, услуги","200","000 0113 П42П105 244 226 ",720000,"-",720000]
["Подпрограмма \"Развитие муниципальной службы и повышение квалификации кадров органов местного самоуправления МО \"Город Пикалево\" муниципальной  программы \"Развитие муниципального управления и информационного общества в МО \"Город Пикалево\"","200","000 0113 П610000 000 000 ",146500,4000,142500]
["Организация повышения квалификации лиц, замещающих должности муниципальной службы в органах местного самоуправления МО \"Город Пикалево\", и лиц, зачисленных в кадровый резерв администрации МО \"Город Пикалево\" в рамках подпрограммы \"Развитие муниципальной службы и повышение квалификации кадров органов местного самоуправления МО \"Город Пикалево\" муниципальной  программы \"Развитие муниципального управления и информационного общества в МО \"Город Пикалево\"","200","000 0113 П61П112 000 000 ",146500,4000,142500]
["Прочая закупка товаров, работ и услуг для обеспечения государственных (муниципальных) нужд","200","000 0113 П61П112 244 000 ",146500,4000,142500]
["Расходы","200","000 0113 П61П112 244 200 ",146500,4000,142500]
["Оплата работ, услуг","200","000 0113 П61П112 244 220 ",146500,4000,142500]
["Прочие работы, услуги","200","000 0113 П61П112 244 226 ",146500,4000,142500]
["Подпрограмма \"Информирование населения о деятельности органов местного самоуправления МО \"Город Пикалево\" муниципальной  программы \"Развитие муниципального управления и информационного общества в МО \"Город Пикалево\"","200","000 0113 П620000 000 000 ",289692,9405.4,280286.59999999998]
["Организация освещения  в печатных и электронных средствах массовой информации, в сети Интернет деятельности органов местного самоуправления, актуальных вопросов и событий политической, общественной, экономической, культурной, спортивной жизни в рамках подпрограммы \"Информирование населения о деятельности органов местного самоуправления МО \"Город Пикалево\" муниципальной  программы \"Развитие муниципального управления и информационного общества в МО \"Город Пикалево\"","200","000 0113 П62П016 000 000 ",289692,9405.4,280286.59999999998]
["Закупка товаров, работ, услуг в сфере информационно-коммуникационных технологий","200","000 0113 П62П016 242 000 ",289692,9405.4,280286.59999999998]
["Расходы","200","000 0113 П62П016 242 200 ",289692,9405.4,280286.59999999998]
["Оплата работ, услуг","200","000 0113 П62П016 242 220 ",289692,9405.4,280286.59999999998]
["Прочие работы, услуги","200","000 0113 П62П016 242 226 ",289692,9405.4,280286.59999999998]
["НАЦИОНАЛЬНАЯ ОБОРОНА","200","000 0200 0000000 000 000 ",1100598,87322.42,1013275.58]
["Мобилизационная и вневойсковая подготовка","200","000 0203 0000000 000 000 ",1100598,87322.42,1013275.58]
["Непрограммные расходы органов местного самоуправления по вопросам национальной обороны","200","000 0203 Г220000 000 000 ",1100598,87322.42,1013275.58]
["Осуществление первичного воинского учета на территориях, где отсутствуют военные комиссариаты за счет средств субвенции федерального бюджета  в рамках непрограммных расходов органов местного самоуправления по вопросам национальной обороны","200","000 0203 Г225118 000 000 ",1100598,87322.42,1013275.58]
["Фонд оплаты труда государственных (муниципальных) органов и взносы по обязательному социальному страхованию","200","000 0203 Г225118 121 000 ",1008930,84760.05,924169.95]
["Расходы","200","000 0203 Г225118 121 200 ",1008930,84760.05,924169.95]
["Оплата труда и начисления на выплаты по оплате труда","200","000 0203 Г225118 121 210 ",1008930,84760.05,924169.95]
["Заработная плата","200","000 0203 Г225118 121 211 ",774908,68811.100000000006,706096.9]
["Начисления на выплаты по оплате труда","200","000 0203 Г225118 121 213 ",234022,15948.95,218073.05]
["Закупка товаров, работ, услуг в сфере информационно-коммуникационных технологий","200","000 0203 Г225118 242 000 ",57713,2562.37,55150.63]
["Расходы","200","000 0203 Г225118 242 200 ",36187,2562.37,33624.629999999997]
["Оплата работ, услуг","200","000 0203 Г225118 242 220 ",36187,2562.37,33624.629999999997]
["Услуги связи","200","000 0203 Г225118 242 221 ",25067,2562.37,22504.63]
["Работы, услуги по содержанию имущества","200","000 0203 Г225118 242 225 ",11120,"-",11120]
["Поступление нефинансовых активов","200","000 0203 Г225118 242 300 ",21526,"-",21526]
["Увеличение стоимости основных средств","200","000 0203 Г225118 242 310 ",8000,"-",8000]
["Увеличение стоимости материальных запасов","200","000 0203 Г225118 242 340 ",13526,"-",13526]
["Прочая закупка товаров, работ и услуг для обеспечения государственных (муниципальных) нужд","200","000 0203 Г225118 244 000 ",33955,"-",33955]
["Расходы","200","000 0203 Г225118 244 200 ",6720,"-",6720]
["Оплата работ, услуг","200","000 0203 Г225118 244 220 ",6720,"-",6720]
["Услуги связи","200","000 0203 Г225118 244 221 ",6000,"-",6000]
["Прочие работы, услуги","200","000 0203 Г225118 244 226 ",720,"-",720]
["Поступление нефинансовых активов","200","000 0203 Г225118 244 300 ",27235,"-",27235]
["Увеличение стоимости материальных запасов","200","000 0203 Г225118 244 340 ",27235,"-",27235]
["НАЦИОНАЛЬНАЯ БЕЗОПАСНОСТЬ И ПРАВООХРАНИТЕЛЬНАЯ ДЕЯТЕЛЬНОСТЬ","200","000 0300 0000000 000 000 ",484890,72227.73,412662.27]
["Защита населения и территории от чрезвычайных ситуаций природного и техногенного характера, гражданская оборона","200","000 0309 0000000 000 000 ",163890,32500,131390]
["Подпрограмма \"Предупреждение чрезвычайных ситуаций, защита населения и территорий от чрезвычайных ситуаций природного и техногенного характера, развитие гражданской обороны, обеспечение пожарной безопасности и безопасности на водных объектах\" муниципальной программы \"Безопасность в МО \"Город Пикалево\"","200","000 0309 П410000 000 000 ",163890,32500,131390]
["Субсидии на обеспечение мероприятий по предупреждению и ликвидации последствий чрезвычайных ситуаций и стихийных бедствий в рамках подпрограммы \"Предупреждение чрезвычайных ситуаций, защита населения и территорий от чрезвычайных ситуаций природного и техногенного характера, развитие гражданской обороны, обеспечение пожарной безопасности и безопасности на водных объектах\" муниципальной  программы \"Безопасность в МО \"Город Пикалево\"","200","000 0309 П41П509 000 000 ",93890,"-",93890]
["Субсидии бюджетным учреждениям на иные цели","200","000 0309 П41П509 612 000 ",93890,"-",93890]
["Расходы","200","000 0309 П41П509 612 200 ",93890,"-",93890]
["Безвозмездные перечисления организациям","200","000 0309 П41П509 612 240 ",93890,"-",93890]
["Безвозмездные перечисления государственным и муниципальным организациям","200","000 0309 П41П509 612 241 ",93890,"-",93890]
["Межбюджетные трансферты бюджетам муниципальных районов из бюджетов поселений на осуществление полномочий в области создания, содержания и организации деятельности аварийно-спасательных служб и (или) аварийно-спасательных формирований  в рамках подпрограммы \"Предупреждение чрезвычайных ситуаций, защита населения и территорий от чрезвычайных ситуаций природного и техногенного характера, развитие гражданской обороны, обеспечение пожарной безопасности и безопасности на водных объектах\" муниципальной  программы \"Безопасность в МО \"Город Пикалево\"","200","000 0309 П41П701 000 000 ",50000,12500,{"$f":"IF(OR(D271=\"-\",E271=D271),\"-\",D271-IF(E271=\"-\",0,E271))","v":37500}]
["Иные межбюджетные трансферты","200","000 0309 П41П701 540 000 ",50000,12500,37500]
["Расходы","200","000 0309 П41П701 540 200 ",50000,12500,37500]
["Безвозмездные перечисления бюджетам","200","000 0309 П41П701 540 250 ",50000,12500,37500]
["Перечисления другим бюджетам бюджетной системы Российской Федерации","200","000 0309 П41П701 540 251 ",50000,12500,37500]
["Межбюджетные трансферты бюджетам муниципальных районов из бюджетов поселений на осуществление полномочий в области гражданской обороны, защиты населения и территории от чрезвычайных ситуаций природного и техногенного характера в части подготовки и обучения населения в области гражданской обороны, способам защиты и действиям в чрезвычайных ситуациях  в рамках подпрограммы \"Предупреждение чрезвычайных ситуаций, защита населения и территорий от чрезвычайных ситуаций природного и техногенного характера, развитие гражданской обороны, обеспечение пожарной безопасности и безопасности на водных объектах\" муниципальной  программы \"Безопасность в МО \"Город Пикалево\"","200","000 0309 П41П702 000 000 ",20000,20000,"-"]
["Иные межбюджетные трансферты","200","000 0309 П41П702 540 000 ",20000,20000,"-"]
["Расходы","200","000 0309 П41П702 540 200 ",20000,20000,"-"]
["Безвозмездные перечисления бюджетам","200","000 0309 П41П702 540 250 ",20000,20000,"-"]
["Перечисления другим бюджетам бюджетной системы Российской Федерации","200","000 0309 П41П702 540 251 ",20000,20000,"-"]
["Обеспечение пожарной безопасности","200","000 0310 0000000 000 000 ",321000,39727.730000000003,281272.27]
["Подпрограмма \"Предупреждение чрезвычайных ситуаций, защита населения и территорий от чрезвычайных ситуаций природного и техногенного характера, развитие гражданской обороны, обеспечение пожарной безопасности и безопасности на водных объектах\" муниципальной программы \"Безопасность в МО \"Город Пикалево\"","200","000 0310 П410000 000 000 ",321000,39727.730000000003,281272.27]
["Обеспечение первичных мер пожарной безопасности  в рамках подпрограммы \"Предупреждение чрезвычайных ситуаций, защита населения и территорий от чрезвычайных ситуаций природного и техногенного характера, развитие гражданской обороны, обеспечение пожарной безопасности и безопасности на водных объектах\" муниципальной  программы \"Безопасность в МО \"Город Пикалево\"","200","000 0310 П41П103 000 000 ",321000,39727.730000000003,281272.27]
["Прочая закупка товаров, работ и услуг для обеспечения государственных (муниципальных) нужд","200","000 0310 П41П103 244 000 ",321000,39727.730000000003,281272.27]
["Расходы","200","000 0310 П41П103 244 200 ",321000,39727.730000000003,281272.27]
["Оплата работ, услуг","200","000 0310 П41П103 244 220 ",321000,39727.730000000003,281272.27]
["Работы, услуги по содержанию имущества","200","000 0310 П41П103 244 225 ",321000,39727.730000000003,281272.27]
["НАЦИОНАЛЬНАЯ ЭКОНОМИКА","200","000 0400 0000000 000 000 ",15449901.59,1479721,13970180.59]
["Транспорт","200","000 0408 0000000 000 000 ",1629100,51000,1578100]
["Муниципальная программа \"Развитие транспортного комплекса в МО \"Город Пикалево\"","200","000 0408 П300000 000 000 ",1629100,51000,1578100]
["Субсидии юридическим лицам, осуществляющим пассажирские перевозки автомобильным транспортом общего пользования в МО \"Город Пикалево\" в рамках муниципальной программы \"Развитие транспортного комплекса в МО \"Город Пикалево\"","200","000 0408 П30П603 000 000 ",1629100,51000,1578100]
["Субсидии юридическим лицам (кроме некоммерческих организаций), индивидуальным предпринимателям, физическим лицам","200","000 0408 П30П603 810 000 ",1629100,51000,1578100]
["Расходы","200","000 0408 П30П603 810 200 ",1629100,51000,1578100]
["Безвозмездные перечисления организациям","200","000 0408 П30П603 810 240 ",1629100,51000,1578100]
["Безвозмездные перечисления организациям, за исключением государственных и муниципальных организаций","200","000 0408 П30П603 810 242 ",1629100,51000,1578100]
["Дорожное хозяйство (дорожные фонды)","200","000 0409 0000000 000 000 ",8517891.5899999999,1428721,7089170.5899999999]
["Непрограммные расходы органов местного самоуправления по вопросам национальной экономики","200","000 0409 Г240000 000 000 ",20000,"-",20000]
["Обеспечение мероприятий по строительству объектов Комплексного инвестиционного плана в рамках непрограммных расходов  органов местного самоуправления по вопросам национальной экономики","200","000 0409 Г24Г115 000 000 ",20000,"-",20000]
["Бюджетные инвестиции в объекты капитального строительства государственной (муниципальной) собственности","200","000 0409 Г24Г115 414 000 ",20000,"-",20000]
["Поступление нефинансовых активов","200","000 0409 Г24Г115 414 300 ",20000,"-",20000]
["Увеличение стоимости основных средств","200","000 0409 Г24Г115 414 310 ",20000,"-",20000]
["Муниципальная программа \"Развитие транспортного комплекса в МО \"Город Пикалево\"","200","000 0409 П300000 000 000 ",8497891.5899999999,1428721,7069170.5899999999]
["Мероприятия по содержанию сети автомобильных дорог общего пользования местного значения в рамках муниципальной программы \"Развитие транспортного комплекса в МО \"Город Пикалево\"","200","000 0409 П30П107 000 000 ",7478488,1422071,6056417]
["Прочая закупка товаров, работ и услуг для обеспечения государственных (муниципальных) нужд","200","000 0409 П30П107 244 000 ",7478488,1422071,6056417]
["Расходы","200","000 0409 П30П107 244 200 ",7478488,1422071,6056417]
["Оплата работ, услуг","200","000 0409 П30П107 244 220 ",7478488,1422071,6056417]
["Работы, услуги по содержанию имущества","200","000 0409 П30П107 244 225 ",7059600,1362258,5697342]
["Прочие работы, услуги","200","000 0409 П30П107 244 226 ",418888,59813,359075]
["Капитальный ремонт и ремонт автомобильных дорог общего пользования местного значения  в рамках муниципальной программы \"Развитие   транспортного комплекса в МО \"Город Пикалево\"","200","000 0409 П30П108 000 000 ",789203.59,6650,782553.59]
["Прочая закупка товаров, работ и услуг для обеспечения государственных (муниципальных) нужд","200","000 0409 П30П108 244 000 ",789203.59,6650,782553.59]
["Расходы","200","000 0409 П30П108 244 200 ",789203.59,6650,782553.59]
["Оплата работ, услуг","200","000 0409 П30П108 244 220 ",789203.59,6650,782553.59]
["Работы, услуги по содержанию имущества","200","000 0409 П30П108 244 225 ",782553.59,"-",782553.59]
["Прочие работы, услуги","200","000 0409 П30П108 244 226 ",6650,6650,"-"]
["Капитальный ремонт и ремонт дворовых территорий многоквартирных домов и проездов  к дворовым территориям многоквартирных домов в рамках муниципальной программы \"Развитие транспортного комплекса в МО \"Город Пикалево\"","200","000 0409 П30П109 000 000 ",230200,"-",230200]
["Прочая закупка товаров, работ и услуг для обеспечения государственных (муниципальных) нужд","200","000 0409 П30П109 244 000 ",230200,"-",230200]
["Расходы","200","000 0409 П30П109 244 200 ",230200,"-",230200]
["Оплата работ, услуг","200","000 0409 П30П109 244 220 ",230200,"-",230200]
["Работы, услуги по содержанию имущества","200","000 0409 П30П109 244 225 ",230200,"-",230200]
["Другие вопросы в области национальной экономики","200","000 0412 0000000 000 000 ",5302910,"-",5302910]
["Непрограммные расходы органов местного самоуправления по вопросам национальной экономики","200","000 0412 Г240000 000 000 ",5202910,"-",5202910]
["Мероприятия в области строительства, архитектуры и градостроительства в рамках непрограммных расходов органов местного самоуправления по вопросам национальной экономики","200","000 0412 Г24Г110 000 000 ",5000000,"-",5000000]
["Прочая закупка товаров, работ и услуг для обеспечения государственных (муниципальных) нужд","200","000 0412 Г24Г110 244 000 ",5000000,"-",5000000]
["Расходы","200","000 0412 Г24Г110 244 200 ",5000000,"-",5000000]
["Оплата работ, услуг","200","000 0412 Г24Г110 244 220 ",5000000,"-",5000000]
["Прочие работы, услуги","200","000 0412 Г24Г110 244 226 ",5000000,"-",5000000]
["Мероприятия по землеустройству и землепользованию в рамках непрограммных расходов органов местного самоуправления по вопросам национальной экономики","200","000 0412 Г24Г111 000 000 ",202910,"-",202910]
["Прочая закупка товаров, работ и услуг для обеспечения государственных (муниципальных) нужд","200","000 0412 Г24Г111 244 000 ",202910,"-",202910]
["Расходы","200","000 0412 Г24Г111 244 200 ",202910,"-",202910]
["Оплата работ, услуг","200","000 0412 Г24Г111 244 220 ",202910,"-",202910]
["Прочие работы, услуги","200","000 0412 Г24Г111 244 226 ",202910,"-",202910]
["Муниципальная программа \"Развитие малого и среднего предпринимательства на территории МО \"Город Пикалево\"","200","000 0412 П700000 000 000 ",100000,"-",100000]
["Субсидии на имущественную поддержку предпринимательства в рамках муниципальной программы \"Развитие малого и среднего предпринимательства на территории монопрофильного муниципального образования \"Город Пикалево\" (моногорода)","200","000 0412 П70П502 000 000 ",33000,"-",33000]
["Субсидии некоммерческим организациям (за исключением государственных (муниципальных) учреждений)","200","000 0412 П70П502 630 000 ",33000,"-",33000]
["Расходы","200","000 0412 П70П502 630 200 ",33000,"-",{"$f":"IF(OR(D335=\"-\",E335=D335),\"-\",D335-IF(E335=\"-\",0,E335))","v":33000}]
["Безвозмездные перечисления организациям","200","000 0412 П70П502 630 240 ",33000,"-",33000]
["Безвозмездные перечисления организациям, за исключением государственных и муниципальных организаций","200","000 0412 П70П502 630 242 ",33000,"-",33000]
["Субсидии на информационную, консультационную поддержку субъектов малого и среднего предпринимательства в рамках муниципальной программы \"Развитие малого и среднего предпринимательства на территории монопрофильного муниципального образования \"Город Пикалево\" (моногорода)","200","000 0412 П70П503 000 000 ",67000,"-",67000]
["Субсидии некоммерческим организациям (за исключением государственных (муниципальных) учреждений)","200","000 0412 П70П503 630 000 ",67000,"-",67000]
["Расходы","200","000 0412 П70П503 630 200 ",67000,"-",67000]
["Безвозмездные перечисления организациям","200","000 0412 П70П503 630 240 ",67000,"-",67000]
["Безвозмездные перечисления организациям, за исключением государственных и муниципальных организаций","200","000 0412 П70П503 630 242 ",67000,"-",67000]
["ЖИЛИЩНО-КОММУНАЛЬНОЕ ХОЗЯЙСТВО","200","000 0500 0000000 000 000 ",114730743.40000001,1373101.3,113357642.10000001]
["Жилищное хозяйство","200","000 0501 0000000 000 000 ",74802538.079999998,"-",74802538.079999998]
["Непрограммные расходы органов местного самоуправления по вопросам жилищно-коммунального хозяйства","200","000 0501 Г250000 000 000 ",2180000,"-",2180000]
["Мероприятия по капитальному ремонту многоквартирных домов в рамках непрограммных расходов органов местного самоуправления по вопросам жилищного-коммунального хозяйства","200","000 0501 Г25Г122 000 000 ",2180000,"-",2180000]
["Закупка товаров, работ, услуг в целях капитального ремонта государственного (муниципального) имущества","200","000 0501 Г25Г122 243 000 ",2180000,"-",2180000]
["Расходы","200","000 0501 Г25Г122 243 200 ",2180000,"-",2180000]
["Оплата работ, услуг","200","000 0501 Г25Г122 243 220 ",2180000,"-",2180000]
["Работы, услуги по содержанию имущества","200","000 0501 Г25Г122 243 225 ",2180000,"-",2180000]
["Подпрограмма \"Переселение граждан из аварийного и (или) непригодного для проживания жилищного фонда\" муниципальной программы \"Обеспечение качественным жильем граждан в МО \"Город Пикалево\"","200","000 0501 П230000 000 000 ",72622538.079999998,"-",72622538.079999998]
["Обеспечение мероприятий по переселению граждан из аварийного жилищного фонда в рамках подпрограммы \"Переселение граждан из аварийного и (или) непригодного для проживания жилищного фонда\" муниципальной программы \"Обеспечение качественным жильем граждан в МО \"Город Пикалево\"","200","000 0501 П237077 000 000 ",70863798.150000006,"-",70863798.150000006]
["Бюджетные инвестиции в объекты капитального строительства государственной (муниципальной) собственности","200","000 0501 П237077 414 000 ",70863798.150000006,"-",70863798.150000006]
["Поступление нефинансовых активов","200","000 0501 П237077 414 300 ",70863798.150000006,"-",70863798.150000006]
["Увеличение стоимости основных средств","200","000 0501 П237077 414 310 ",70863798.150000006,"-",70863798.150000006]
["Обеспечение мероприятий по сносу расселенных аварийных домов в рамках подпрограммы \"Переселение граждан из аварийного и (или) непригодного для проживания жилищного фонда\" муниципальной программы \"Обеспечение качественным жильем граждан в МО \"Город Пикалево\"","200","000 0501 П23П102 000 000 ",1758739.93,"-",1758739.93]
["Прочая закупка товаров, работ и услуг для обеспечения государственных (муниципальных) нужд","200","000 0501 П23П102 244 000 ",1758739.93,"-",1758739.93]
["Расходы","200","000 0501 П23П102 244 200 ",1758739.93,"-",1758739.93]
["Оплата работ, услуг","200","000 0501 П23П102 244 220 ",1758739.93,"-",1758739.93]
["Прочие работы, услуги","200","000 0501 П23П102 244 226 ",1758739.93,"-",1758739.93]
["Коммунальное хозяйство","200","000 0502 0000000 000 000 ",26729403,"-",26729403]
["Непрограммные расходы органов местного самоуправления по вопросам жилищно-коммунального хозяйства","200","000 0502 Г250000 000 000 ",4779403,"-",4779403]
["Субсидии на оплату кредита и процентов по нему перед ОАО \"ЛОКС\" в рамках непрограммных расходов органов местного самоуправления по вопросам жилищного-коммунального хозяйства","200","000 0502 Г25Г605 000 000 ",4779403,"-",4779403]
["Субсидии юридическим лицам (кроме некоммерческих организаций), индивидуальным предпринимателям, физическим лицам","200","000 0502 Г25Г605 810 000 ",4779403,"-",4779403]
["Расходы","200","000 0502 Г25Г605 810 200 ",4779403,"-",4779403]
["Безвозмездные перечисления организациям","200","000 0502 Г25Г605 810 240 ",4779403,"-",4779403]
["Безвозмездные перечисления государственным и муниципальным организациям","200","000 0502 Г25Г605 810 241 ",4779403,"-",4779403]
["Подпрограмма \"Развитие коммунальной и жилищной инфраструктуры в МО \"Город Пикалево\" муниципальной программы \"Развитие коммунальной, жилищной инфраструктуры и благоустройства, повышение энергоэффективности в МО \"Город Пикалево2","200","000 0502 П510000 000 000 ",21950000,"-",21950000]
["Субсидии на мероприятия по строительству и реконструкции объектов водоснабжения, водоотведения и очистки сточных вод за счет средств областного бюджета в рамках подпрограммы \"Развитие коммунальной и жилищной инфраструктуры в МО \"Город Пикалево\" муниципальной программы \"Развитие коммунальной, жилищной инфраструктуры и благоустройства, повышение энергоэффективности в МО \"Город Пикалево\"","200","000 0502 П517025 000 000 ",20000000,"-",20000000]
["Субсидии на осуществление капитальных вложений в объекты капитального строительства государственной (муниципальной) собственности государственным (муниципальным) унитарным предприятиям","200","000 0502 П517025 466 000 ",20000000,"-",20000000]
["Поступление финансовых активов","200","000 0502 П517025 466 500 ",20000000,"-",20000000]
["Увеличение стоимости акций и иных форм участия в капитале","200","000 0502 П517025 466 530 ",20000000,"-",20000000]
["Мероприятия по разработке схемы водоснабжения и водоотведения по МО \"Город Пикалево\"в рамках подпрограммы \"Развитие коммунальной и жилищной инфраструктуры в МО \"Город Пикалево\" муниципальной программы \"Развитие коммунальной, жилищной инфраструктуры и благоустройства, повышение энергоэффективности в МО \"Город Пикалево\"","200","000 0502 П51П121 000 000 ",700000,"-",700000]
["Прочая закупка товаров, работ и услуг для обеспечения государственных (муниципальных) нужд","200","000 0502 П51П121 244 000 ",700000,"-",700000]
["Расходы","200","000 0502 П51П121 244 200 ",700000,"-",700000]
["Оплата работ, услуг","200","000 0502 П51П121 244 220 ",700000,"-",700000]
["Прочие работы, услуги","200","000 0502 П51П121 244 226 ",700000,"-",700000]
["Субсидии на мероприятия по строительству и реконструкции объектов водоснабжения, водоотведения и очистки сточных вод в рамках подпрограммы \"Развитие коммунальной и жилищной инфраструктуры в МО \"Город Пикалево\" муниципальной  программы \"Развитие коммунальной,  жилищной инфраструктуры и благоустройства, повышение энергоэффективности в МО \"Город Пикалево\"","200","000 0502 П51П608 000 000 ",1250000,"-",1250000]
["Субсидии на осуществление капитальных вложений в объекты капитального строительства государственной (муниципальной) собственности государственным (муниципальным) унитарным предприятиям","200","000 0502 П51П608 466 000 ",1250000,"-",1250000]
["Поступление финансовых активов","200","000 0502 П51П608 466 500 ",1250000,"-",1250000]
["Увеличение стоимости акций и иных форм участия в капитале","200","000 0502 П51П608 466 530 ",1250000,"-",1250000]
["Благоустройство","200","000 0503 0000000 000 000 ",13025002.32,1373101.3,11651901.02]
["Непрограммные расходы органов местного самоуправления по вопросам жилищно-коммунального хозяйства","200","000 0503 Г250000 000 000 ",447761.32,2000,445761.32]
["Прочие мероприятия  по благоустройству территории в рамках непрограммных расходов органов местного самоуправления по вопросам жилищно-коммунального хозяйства","200","000 0503 Г25Г114 000 000 ",447761.32,2000,445761.32]
["Прочая закупка товаров, работ и услуг для обеспечения государственных (муниципальных) нужд","200","000 0503 Г25Г114 244 000 ",447761.32,2000,445761.32]
["Расходы","200","000 0503 Г25Г114 244 200 ",447761.32,2000,445761.32]
["Оплата работ, услуг","200","000 0503 Г25Г114 244 220 ",447761.32,2000,445761.32]
["Прочие работы, услуги","200","000 0503 Г25Г114 244 226 ",447761.32,2000,445761.32]
["Подпрограмма \"Благоустройство территории МО \"Город Пикалево\" муниципальной программы \"Развитие коммунальной, жилищной инфраструктуры и благоустройства, повышение энергоэффективности в МО \"Город Пикалево\"","200","000 0503 П530000 000 000 ",12577241,1371101.3,11206139.699999999]
["Обеспечение уличного освещения территории в рамках подпрограммы \"Благоустройство территории МО \"Город Пикалево\" муниципальной  программы \"Развитие коммунальной,  жилищной инфраструктуры и благоустройства, повышение энергоэффективности в МО \"Город Пикалево\"","200","000 0503 П53П106 000 000 ",7941361,1211916.1100000001,6729444.8899999997]
["Прочая закупка товаров, работ и услуг для обеспечения государственных (муниципальных) нужд","200","000 0503 П53П106 244 000 ",7941361,1211916.1100000001,6729444.8899999997]
["Расходы","200","000 0503 П53П106 244 200 ",7941361,1211916.1100000001,6729444.8899999997]
["Оплата работ, услуг","200","000 0503 П53П106 244 220 ",7941361,1211916.1100000001,6729444.8899999997]
["Коммунальные услуги","200","000 0503 П53П106 244 223 ",7941361,1211916.1100000001,6729444.8899999997]
["Обеспечение озеленения территории в рамках подпрограммы \"Благоустройство территории МО \"Город Пикалево\" муниципальной  программы \"Развитие коммунальной,  жилищной инфраструктуры и благоустройства, повышение энергоэффективности в МО \"Город Пикалево\"","200","000 0503 П53П110 000 000 ",1382100,"-",1382100]
["Прочая закупка товаров, работ и услуг для обеспечения государственных (муниципальных) нужд","200","000 0503 П53П110 244 000 ",1382100,"-",1382100]
["Расходы","200","000 0503 П53П110 244 200 ",1382100,"-",1382100]
["Оплата работ, услуг","200","000 0503 П53П110 244 220 ",1382100,"-",1382100]
["Работы, услуги по содержанию имущества","200","000 0503 П53П110 244 225 ",1382100,"-",{"$f":"IF(OR(D399=\"-\",E399=D399),\"-\",D399-IF(E399=\"-\",0,E399))","v":1382100}]
["Прочие мероприятия  по благоустройству территории в рамках подпрограммы \"Благоустройство территории МО \"Город Пикалево\"  муниципальной  программы \"Развитие коммунальной,  жилищной инфраструктуры и благоустройства, повышение энергоэффективности в МО \"Город Пикалево\"","200","000 0503 П53П111 000 000 ",1637880,"-",1637880]
["Прочая закупка товаров, работ и услуг для обеспечения государственных (муниципальных) нужд","200","000 0503 П53П111 244 000 ",1637880,"-",1637880]
["Расходы","200","000 0503 П53П111 244 200 ",1637880,"-",1637880]
["Оплата работ, услуг","200","000 0503 П53П111 244 220 ",1637880,"-",1637880]
["Работы, услуги по содержанию имущества","200","000 0503 П53П111 244 225 ",1637880,"-",1637880]
["Субсидии на мероприятия по содержанию и обслуживанию инженерных сетей, находящихся в муниципальной собственности в рамках подпрограммы \"Благоустройство территории МО \"Город Пикалево\" муниципальной  программы \"Развитие коммунальной,  жилищной инфраструктуры и благоустройства, повышение энергоэффективности в МО \"Город Пикалево\"","200","000 0503 П53П607 000 000 ",1615900,159185.19,1456714.81]
["Субсидии юридическим лицам (кроме некоммерческих организаций), индивидуальным предпринимателям, физическим лицам","200","000 0503 П53П607 810 000 ",1615900,159185.19,1456714.81]
["Расходы","200","000 0503 П53П607 810 200 ",1615900,159185.19,1456714.81]
["Безвозмездные перечисления организациям","200","000 0503 П53П607 810 240 ",1615900,159185.19,1456714.81]
["Безвозмездные перечисления государственным и муниципальным организациям","200","000 0503 П53П607 810 241 ",1037740,76708.399999999994,961031.6]
["Безвозмездные перечисления организациям, за исключением государственных и муниципальных организаций","200","000 0503 П53П607 810 242 ",578160,82476.789999999994,495683.21]
["Другие вопросы в области жилищно-коммунального хозяйства","200","000 0505 0000000 000 000 ",173800,"-",173800]
["Подпрограмма \"Энергосбережение и повышение энергетической эффективности МО \"Город Пикалево\" муниципальной программы \"Развитие коммунальной, жилищной инфраструктуры и благоустройства, повышение энергоэффективности в МО \"Город Пикалево\"","200","000 0505 П520000 000 000 ",173800,"-",173800]
["Мероприятия по энергосбережению и повышению энергетической эффективности в рамках подпрограммы \"Энергосбережение и повышение энергетической эффективности МО \"Город Пикалево\"","200","000 0505 П52П119 000 000 ",173800,"-",173800]
["Прочая закупка товаров, работ и услуг для обеспечения государственных (муниципальных) нужд","200","000 0505 П52П119 244 000 ",173800,"-",173800]
["Расходы","200","000 0505 П52П119 244 200 ",173800,"-",173800]
["Оплата работ, услуг","200","000 0505 П52П119 244 220 ",173800,"-",173800]
["Работы, услуги по содержанию имущества","200","000 0505 П52П119 244 225 ",173800,"-",173800]
["ОБРАЗОВАНИЕ","200","000 0700 0000000 000 000 ",138000,"-",138000]
["Молодежная политика и оздоровление детей","200","000 0707 0000000 000 000 ",138000,"-",138000]
["Подпрограмма \"Молодежная политика в МО \"Город Пикалево\" муниципальной программы \"Культура, физическая культура, спорт и молодежная политика в МО \"Город Пикалево\"","200","000 0707 П130000 000 000 ",138000,"-",138000]
["Субсидии на организацию и проведение мероприятий в сфере молодежной политики в рамках подпрограммы \"Молодежная политика в МО \"Город Пикалево\" муниципальной программы \"Культура, физическая культура, спорт и молодежная политика в МО \"Город Пикалево\"","200","000 0707 П13П508 000 000 ",138000,"-",138000]
["Субсидии бюджетным учреждениям на иные цели","200","000 0707 П13П508 612 000 ",138000,"-",138000]
["Расходы","200","000 0707 П13П508 612 200 ",138000,"-",138000]
["Безвозмездные перечисления организациям","200","000 0707 П13П508 612 240 ",138000,"-",138000]
["Безвозмездные перечисления государственным и муниципальным организациям","200","000 0707 П13П508 612 241 ",138000,"-",138000]
["КУЛЬТУРА, КИНЕМАТОГРАФИЯ","200","000 0800 0000000 000 000 ",21638073.579999998,1852145.43,19785928.149999999]
["Культура","200","000 0801 0000000 000 000 ",21638073.579999998,1852145.43,19785928.149999999]
["Подпрограмма \"Культура в МО \"Город Пикалево\" муниципальной программы \"Культура, физическая культура, спорт и молодежная политика в МО \"Город Пикалево\"","200","000 0801 П110000 000 000 ",21638073.579999998,1852145.43,19785928.149999999]
["Проведение мероприятий по сохранению исторического и культурного наследия Бокситогорского муниципального района за счет средств бюджета Бокситогорского муниципального района в рамках подпрограммы \"Культура в МО \"Город Пикалево\"\" муниципальной программы \"Культура, физическая культура, спорт и молодежная политика в МО \"Город Пикалево\"","200","000 0801 П11Б117 000 000 ",150000,"-",150000]
["Прочая закупка товаров, работ и услуг для обеспечения государственных (муниципальных) нужд","200","000 0801 П11Б117 244 000 ",150000,"-",150000]
["Расходы","200","000 0801 П11Б117 244 200 ",150000,"-",150000]
["Оплата работ, услуг","200","000 0801 П11Б117 244 220 ",150000,"-",150000]
["Работы, услуги по содержанию имущества","200","000 0801 П11Б117 244 225 ",150000,"-",150000]
["Предоставление муниципальным бюджетным учреждениям субсидий  в рамках подпрограммы \"Культура в МО \"Город Пикалево\" муниципальной программы \"Культура, физическая культура, спорт и молодежная политика в МО \"Город Пикалево\"","200","000 0801 П11П017 000 000 ",18329715,1852145.43,16477569.57]
["Субсидии бюджетным учреждениям на финансовое обеспечение государственного (муниципального) задания на оказание государственных (муниципальных) услуг (выполнение работ)","200","000 0801 П11П017 611 000 ",18329715,1852145.43,16477569.57]
["Расходы","200","000 0801 П11П017 611 200 ",18329715,1852145.43,16477569.57]
["Безвозмездные перечисления организациям","200","000 0801 П11П017 611 240 ",18329715,1852145.43,16477569.57]
["Безвозмездные перечисления государственным и муниципальным организациям","200","000 0801 П11П017 611 241 ",18329715,1852145.43,16477569.57]
["Субсидии на организацию и проведение мероприятий в сфере культуры в рамках подпрограммы \"Культура в МО \"Город Пикалево\" муниципальной программы \"Культура, физическая культура, спорт и молодежная политика в МО \"Город Пикалево\"","200","000 0801 П11П504 000 000 ",73000,"-",73000]
["Субсидии бюджетным учреждениям на иные цели","200","000 0801 П11П504 612 000 ",73000,"-",73000]
["Расходы","200","000 0801 П11П504 612 200 ",73000,"-",73000]
["Безвозмездные перечисления организациям","200","000 0801 П11П504 612 240 ",73000,"-",73000]
["Безвозмездные перечисления государственным и муниципальным организациям","200","000 0801 П11П504 612 241 ",73000,"-",73000]
["Субсидии на капитальный ремонт объектов культуры МО \"Город Пикалево\" в рамках подпрограммы \"Культура в МО \"Город Пикалево\" муниципальной программы \"Культура, физическая культура, спорт и молодежная политика в МО \"Город Пикалево\"","200","000 0801 П11П505 000 000 ",3085358.58,"-",3085358.58]
["Субсидии бюджетным учреждениям на иные цели","200","000 0801 П11П505 612 000 ",3085358.58,"-",3085358.58]
["Расходы","200","000 0801 П11П505 612 200 ",3085358.58,"-",3085358.58]
["Безвозмездные перечисления организациям","200","000 0801 П11П505 612 240 ",3085358.58,"-",3085358.58]
["Безвозмездные перечисления государственным и муниципальным организациям","200","000 0801 П11П505 612 241 ",3085358.58,"-",3085358.58]
["СОЦИАЛЬНАЯ ПОЛИТИКА","200","000 1000 0000000 000 000 ",3864573.3,143850,3720723.3]
["Пенсионное обеспечение","200","000 1001 0000000 000 000 ",2932900,139350,2793550]
["Непрограммные расходы органов местного самоуправления по вопросам социальной политики","200","000 1001 Г2П0000 000 000 ",2932900,139350,2793550]
["Доплаты к пенсиям муниципальных служащих в рамках непрограммных расходов органов местного самоуправления по вопросам социальной политики","200","000 1001 Г2ПГ112 000 000 ",2932900,139350,2793550]
["Пособия, компенсации и иные социальные выплаты гражданам, кроме публичных нормативных обязательств","200","000 1001 Г2ПГ112 321 000 ",2932900,139350,2793550]
["Расходы","200","000 1001 Г2ПГ112 321 200 ",2932900,139350,2793550]
["Социальное обеспечение","200","000 1001 Г2ПГ112 321 260 ",2932900,139350,2793550]
["Пенсии, пособия, выплачиваемые организациями сектора государственного управления","200","000 1001 Г2ПГ112 321 263 ",2932900,139350,2793550]
["Социальное обеспечение населения","200","000 1003 0000000 000 000 ",931673.3,4500,927173.3]
["Непрограммные расходы органов местного самоуправления по вопросам социальной политики","200","000 1003 Г2П0000 000 000 ",73000,4500,68500]
["Оказание других видов социальной помощи в рамках непрограммных расходов органов местного самоуправления по вопросам социальной политики","200","000 1003 Г2ПГ300 000 000 ",73000,4500,68500]
["Пособия, компенсации, меры социальной поддержки по публичным нормативным обязательствам","200","000 1003 Г2ПГ300 313 000 ",73000,4500,68500]
["Расходы","200","000 1003 Г2ПГ300 313 200 ",73000,4500,68500]
["Социальное обеспечение","200","000 1003 Г2ПГ300 313 260 ",73000,4500,68500]
["Пособия по социальной помощи населению","200","000 1003 Г2ПГ300 313 262 ",73000,4500,{"$f":"IF(OR(D463=\"-\",E463=D463),\"-\",D463-IF(E463=\"-\",0,E463))","v":68500}]
["Подпрограмма \"Физическая культура и спорт в МО \"Город Пикалево\" муниципальной программы \"Культура, физическая культура, спорт и молодежная политика в МО \"Город Пикалево\"","200","000 1003 П120000 000 000 ",310000,"-",310000]
["Субсидии на организацию мероприятий по приспособлению для доступа инвалидов здания плавательного бассейна г. Пикалево за счет средств областного бюджета в рамках подпрограммы \"Физическая культура и спорт в МО \"Город Пикалево\" муниципальной программы \"Культура, физическая культура, спорт и молодежная политика в МО \"Город Пикалево\"","200","000 1003 П127093 000 000 ",155000,"-",155000]
["Субсидии бюджетным учреждениям на иные цели","200","000 1003 П127093 612 000 ",155000,"-",155000]
["Расходы","200","000 1003 П127093 612 200 ",155000,"-",155000]
["Безвозмездные перечисления организациям","200","000 1003 П127093 612 240 ",155000,"-",155000]
["Безвозмездные перечисления государственным и муниципальным организациям","200","000 1003 П127093 612 241 ",155000,"-",155000]
["Субсидии на организацию мероприятий по приспособлению для доступа инвалидов здания плавательного бассейна города Пикалево в рамках подпрограммы \"Физическая культура и спорт в МО \"Город Пикалево\" муниципальной программы \"Культура, физическая культура, спорт и молодежная политика в МО \"Город Пикалево\"","200","000 1003 П12П507 000 000 ",155000,"-",155000]
["Субсидии бюджетным учреждениям на иные цели","200","000 1003 П12П507 612 000 ",155000,"-",155000]
["Расходы","200","000 1003 П12П507 612 200 ",155000,"-",155000]
["Безвозмездные перечисления организациям","200","000 1003 П12П507 612 240 ",155000,"-",155000]
["Безвозмездные перечисления государственным и муниципальным организациям","200","000 1003 П12П507 612 241 ",155000,"-",155000]
["Подпрограмма \" Жилье для молодежи\" муниципальной программы \"Обеспечение качественным жильем граждан в МО \"Город Пикалево\"","200","000 1003 П210000 000 000 ",301232.40000000002,"-",301232.40000000002]
["Субсидии на жилье для молодежи в рамках подпрограммы \"Жилье для молодежи\" муниципальной программы \"Обеспечение качественным жильем граждан в МО \"Город Пикалево\"","200","000 1003 П21П601 000 000 ",301232.40000000002,"-",301232.40000000002]
["Субсидии гражданам на приобретение жилья","200","000 1003 П21П601 322 000 ",301232.40000000002,"-",301232.40000000002]
["Расходы","200","000 1003 П21П601 322 200 ",301232.40000000002,"-",301232.40000000002]
["Социальное обеспечение","200","000 1003 П21П601 322 260 ",301232.40000000002,"-",301232.40000000002]
["Пособия по социальной помощи населению","200","000 1003 П21П601 322 262 ",301232.40000000002,"-",301232.40000000002]
["Подпрограмма \" Обеспечение жильем молодых семей\" муниципальной программы \"Обеспечение качественным жильем граждан в МО \"Город Пикалево\"","200","000 1003 П220000 000 000 ",247440.9,"-",247440.9]
["Субсидии на обеспечение жильем молодых семей в рамках подпрограммы \"Обеспечение жильем молодых семей\" муниципальной программы \"Обеспечение качественным жильем граждан в МО \"Город Пикалево\"","200","000 1003 П22П602 000 000 ",247440.9,"-",247440.9]
["Субсидии гражданам на приобретение жилья","200","000 1003 П22П602 322 000 ",247440.9,"-",247440.9]
["Расходы","200","000 1003 П22П602 322 200 ",247440.9,"-",247440.9]
["Социальное обеспечение","200","000 1003 П22П602 322 260 ",247440.9,"-",247440.9]
["Пособия по социальной помощи населению","200","000 1003 П22П602 322 262 ",247440.9,"-",247440.9]
["ФИЗИЧЕСКАЯ КУЛЬТУРА И СПОРТ","200","000 1100 0000000 000 000 ",27631735,2707000,24924735]
["Физическая культура","200","000 1101 0000000 000 000 ",27631735,2707000,24924735]
["Подпрограмма \"Физическая культура и спорт в МО \"Город Пикалево\" муниципальной программы \"Культура, физическая культура, спорт и молодежная политика в МО \"Город Пикалево\"","200","000 1101 П120000 000 000 ",27631735,2707000,24924735]
["Предоставление муниципальным бюджетным учреждениям субсидий  в рамках подпрограммы \"Физическая культура и спорт в МО \"Город Пикалево\" муниципальной программы \"Культура, физическая культура, спорт и молодежная политика в МО \"Город Пикалево\"","200","000 1101 П12П017 000 000 ",25551638,2707000,22844638]
["Субсидии бюджетным учреждениям на финансовое обеспечение государственного (муниципального) задания на оказание государственных (муниципальных) услуг (выполнение работ)","200","000 1101 П12П017 611 000 ",25551638,2707000,22844638]
["Расходы","200","000 1101 П12П017 611 200 ",25551638,2707000,22844638]
["Безвозмездные перечисления организациям","200","000 1101 П12П017 611 240 ",25551638,2707000,22844638]
["Безвозмездные перечисления государственным и муниципальным организациям","200","000 1101 П12П017 611 241 ",25551638,2707000,22844638]
["Субсидии на организацию и проведение мероприятий в сфере физической культуры и спорта в рамках подпрограммы \"Физическая культура и спорт в МО \"Город Пикалево\" муниципальной программы \"Культура, физическая культура, спорт и молодежная политика в МО \"Город Пикалево\"","200","000 1101 П12П506 000 000 ",58000,"-",58000]
["Субсидии бюджетным учреждениям на иные цели","200","000 1101 П12П506 612 000 ",58000,"-",58000]
["Расходы","200","000 1101 П12П506 612 200 ",58000,"-",58000]
["Безвозмездные перечисления организациям","200","000 1101 П12П506 612 240 ",58000,"-",58000]
["Безвозмездные перечисления государственным и муниципальным организациям","200","000 1101 П12П506 612 241 ",58000,"-",58000]
["Субсидии на обеспечение выплат стимулирующего характера работникам муниципальных учреждений физической культуры и спорта МО \"Город Пикалево\" в рамках подпрограммы \"Физическая культура и спорт в МО \"Город Пикалево\" муниципальной программы \"Культура, физическая культура, спорт и молодежная политика в МО \"Город Пикалево\"","200","000 1101 П12П514 000 000 ",2022097,"-",2022097]
["Субсидии бюджетным учреждениям на иные цели","200","000 1101 П12П514 612 000 ",2022097,"-",2022097]
["Расходы","200","000 1101 П12П514 612 200 ",2022097,"-",2022097]
["Безвозмездные перечисления организациям","200","000 1101 П12П514 612 240 ",2022097,"-",2022097]
["Безвозмездные перечисления государственным и муниципальным организациям","200","000 1101 П12П514 612 241 ",2022097,"-",2022097]
["СРЕДСТВА МАССОВОЙ ИНФОРМАЦИИ","200","000 1200 0000000 000 000 ",676700,"-",676700]
["Периодическая печать и издательства","200","000 1202 0000000 000 000 ",676700,"-",676700]
["Подпрограмма \"Информирование населения о деятельности органов местного самоуправления МО \"Город Пикалево\" муниципальной  программы \"Развитие муниципального управления и информационного общества в МО \"Город Пикалево\"","200","000 1202 П620000 000 000 ",676700,"-",676700]
["Субсидии на организацию опубликования муниципальных правовых актов и их проектов о деятельности органов местного самоуправления МО \"Город Пикалево\", а также иной социально-значимой информации через официальные СМИ в рамках подпрограммы \"Информирование населения о деятельности органов местного самоуправления МО \"Город Пикалево\" муниципальной  программы \"Развитие муниципального управления и информационного общества в МО \"Город Пикалево\"","200","000 1202 П62П501 000 000 ",676700,"-",676700]
["Субсидии некоммерческим организациям (за исключением государственных (муниципальных) учреждений)","200","000 1202 П62П501 630 000 ",676700,"-",676700]
["Расходы","200","000 1202 П62П501 630 200 ",676700,"-",676700]
["Безвозмездные перечисления организациям","200","000 1202 П62П501 630 240 ",676700,"-",676700]
["Безвозмездные перечисления организациям, за исключением государственных и муниципальных организаций","200","000 1202 П62П501 630 242 ",676700,"-",676700]
["ОБСЛУЖИВАНИЕ ГОСУДАРСТВЕННОГО И МУНИЦИПАЛЬНОГО ДОЛГА","200","000 1300 0000000 000 000 ",809112,"-",809112]
["Обслуживание государственного внутреннего и муниципального долга","200","000 1301 0000000 000 000 ",809112,"-",809112]
["Непрограммные расходы органов местного самоуправления по вопросам обслуживания муниципального долга","200","000 1301 Г2Д0000 000 000 ",809112,"-",809112]
["Процентные платежи по муниципальному долгу в рамках непрограммных расходов органов местного самоуправления по вопросам обслуживания муниципального долга","200","000 1301 Г2ДГ113 000 000 ",809112,"-",809112]
["Обслуживание муниципального долга","200","000 1301 Г2ДГ113 730 000 ",809112,"-",809112]
["Расходы","200","000 1301 Г2ДГ113 730 200 ",809112,"-",809112]
["Обслуживание государственного (муниципального) долга","200","000 1301 Г2ДГ113 730 230 ",809112,"-",809112]
["Обслуживание внутреннего долга","200","000 1301 Г2ДГ113 730 231 ",809112,"-",809112]
[]
["Результат исполнения бюджета (дефицит / профицит)","450","*** 79000000000000 000",-20222852.489999998,-46004774.840000004,"x                    "]

{"sheet":"ExportParams","index":2,"n_rows":4,"n_cols":2,"rows_kept":4,"cut":false,"hidden":true,"merged":[]}
["EXPORT_SRC_KIND","ПосОБР"]
["EXPORT_PARAM_SRC_KIND","3"]
["EXPORT_SRC_CODE","45012"]
["EXPORT_VB_CODE","3"]

{"sheet":"Источники","index":3,"n_rows":47,"n_cols":6,"rows_kept":47,"cut":false,"hidden":false,"merged":[]}
["                                                                                                                                                                                    Форма 0503117  с.3"]
["                                 3. Источники финансирования дефицита бюджета"]
[]
[" Наименование показателя","Код строки","Код источника финансирования дефицита бюджета по бюджетной классификации","Утвержденные бюджетные назначения","Исполнено","Неисполненные назначения"]
[1,2,3,"4","5","6"]
["Источники финансирования дефицита бюджета - всего","500","*** 90000000000000 000",20222852.489999998,46004774.840000004,{"$f":"SUM(D6-E6)","v":-25781922.350000005}]
["в том числе:"]
["источники внутреннего финансирования бюджета","520","*** 01000000000000 000",10804014,"-",10804014]
["из них:"]
["Кредиты кредитных организаций в валюте Российской Федерации","520","000 01020000000000 000",6224700,"-",6224700]
["Получение кредитов от кредитных организаций в валюте Российской Федерации","520","000 01020000000000 700",10000000,"-",10000000]
["Получение кредитов от кредитных организаций бюджетами поселений в валюте Российской Федерации","520","000 01020000130000 710",10000000,"-",10000000]
["Погашение кредитов, предоставленных кредитными  организациями в валюте Российской Федерации","520","000 01020000000000 800",-3775300,"-",-3775300]
["Погашение бюджетами поселений кредитов от кредитных организаций в валюте Российской Федерации","520","000 01020000130000 810",-3775300,"-",-3775300]
["Бюджетные кредиты от других бюджетов бюджетной системы Российской Федерации","520","000 01030000000000 000",-3534286,"-",-3534286]
["Бюджетные кредиты от других бюджетов бюджетной системы Российской Федерации в валюте Российской Федерации","520","000 01030100000000 000",-3534286,"-",-3534286]
["Погашение бюджетых кредитов, полученных от других бюджетов бюджетной системы Российской Федерации в валюте Российской Федерации","520","000 01030100000000 800",-3534286,"-",-3534286]
["Погашение бюджетами поселений кредитов от других бюджетов бюджетной системы Российской Федерации в валюте Российской Федерации","520","000 01030100130000 810",-3534286,"-",-3534286]
["Иные источники внутреннего финансирования дефицита бюджета","520","000 01060000000000 000",8113600,null,8113600]
["Акции и иные формы участия в капитале, находящихся в государственной и муниципальной собственности","520","000 01060100000000 000",5713600,"-",5713600]
["Средства от продажи акций и иных форм участия в капитале, находящихся в государственной и муниципальной собственности","520","000 01060100000000 630",5713600,"-",5713600]
["Средства от продажи акций и иных форм участия в капитале, находящихся в собственности поселений","520","000 01060100130000 630",5713600,"-",5713600]
["Исполнение государственных и муниципальных гарантий ","520","000 01060400000000 000",-7779403,"-",-7779403]
["Исполнение государственных и муниципальных гарантий в валюте Российской Федерации","520","000 01060401000000 000",-7779403,"-",-7779403]
["Исполнение государственных и муниципальных гарантий в валюте Российской Федерации в случае, если исполнение гарантом муниципальных гарантий ведет к возникновению права регрессного требования гаранта к принципалу либо обусловлено уступкой гаранту прав требования бенефициара к принципалу","520","000 01060401000000 800",-7779403,"-",-7779403]
["Исполнение муниципальных гарантий поселений в валюте Российской Федерации в случае, если исполнение гарантом муниципальных гарантий ведет к возникновению права регрессного требования гаранта к принципалу либо обусловлено уступкой гаранту прав требования бенефициара к принципалу","520","000 01060401130000 810",-7779403,"-",-7779403]
["Прочие бюджетные кредиты (ссуды), предоставленные внутри страны","520","000 01060800000000 000",10179403,"-",10179403]
["Возврат прочих бюджетных кредитов (ссуд), предоставленные внутри страны","520","000 01060800000000 600",10179403,"-",10179403]
["Возврат прочих бюджетных кредитов (ссуд), предоставленных бюджетами поселений внутри страны","520","000 01060800130000 640",10179403,"-",10179403]
["Изменение остатков средств","700","*** 01000000000000 000",9418838.4900000002,46004774.840000004,{"$f":"SUM(D30-E30)","v":-36585936.350000001}]
["Изменение остатков средств на счетах по учету средств бюджета","700","*** 01050000000000 000",9418838.4900000002,46004774.840000004,{"$f":"SUM(D31-E31)","v":-36585936.350000001}]
["увеличение остатков средств бюджетов","710","000 01050000000000 500",-238656319.34999999,-14598982.23,"x                    "]
["увеличение прочих остатков средств бюджетов","710","000 01050200000000 500",-238656319.34999999,-14598982.23,"x                    "]
["увеличение прочих остатков денежных средств бюджетов","710","000 01050201000000 510",-238656319.34999999,-14598982.23,"x                    "]
["Увеличение прочих остатков денежных средств бюджетов поселений","710","000 01050201130000 510",-238656319.34999999,-14598982.23,"x                    "]
["уменьшение остатков средств бюджетов","720","000 01050000000000 600",248075157.84,60603757.07,"x                    "]
["уменьшение прочих остатков средств бюджетов","720","000 01050200000000 600",248075157.84,60603757.07,"x                    "]
["уменьшение прочих остатков денежных средств бюджетов","720","000 01050201000000 610",248075157.84,60603757.07,"x                    "]
["Уменьшение прочих остатков денежных средств бюджетов поселений","720","000 01050201130000 610",248075157.84,60603757.07,"x                    "]
[]
[]
["Глава администрации",null,null,"Д.В. Николаев"]
[]
[]
["Заведующий отделом финансов",null,null,"И.Ю. Жолудева"]
[]
["06 марта  2015 года"]